Workbook

Sheet Fin Income Calc (hidden)
A1: Finance Income Calculation
A4: Runway Sealing Fund
A5: Opening Balance | B5: =#REF! -> 
A6: Interest | B6: =B5*B12 -> 
A8: Terminal Depreciation Fund
A9: Opening Balance | B9: =#REF! -> 
A10: Interest | B10: =B9*B12 -> 
A12: Interest Rate | B12: =Rate!C42 -> 0.0403
A14: Total Interest | B14: =B10+B6 -> 

Sheet Rate (hidden)
A1: Weighted average cost of borrowing (including margin) at month end:
A4: Provide to Management Accountants for quarter and year-end interest calc
A6: Data from Treasury report 2019
A9: First quarter: | D9: Loans drawn down
B10: July | C10: 0.0415 | D10: 65000
B11: Aug | C11: 0.0435 | D11: 57000
B12: Sept | C12: 0.0428 | D12: 60000
D13: 182000
B14: Straight Average: | C14: 0.0426
B15: Weighted Average: | C15: 0.04255494505
A17: Second quarter:
B18: Oct | C18: 0.0417 | D18: 65500
B19: Nov | C19: 0.0403 | D19: 62000
B20: Dec | C20: 0.0388 | D20: 69000
D21: 196500
B22: Straight Average: | C22: 0.04026666667
B23: Weighted Average: | C23: 0.04023994911
A25: Third quarter:
B26: January | C26: 0.0394 | D26: 69000
B27: February | C27: 0.0399 | D27: 67000
B28: March | C28: 0.0395 | D28: 67000
D29: 203000
B30: Straight Average: | C30: 0.0396
B31: Weighted Average: | C31: 0.03959802956
A33: Fouth Quarter:
B34: April | C34: 0.0389 | D34: 69500
B35: May | C35: 0.0385 | D35: 67000
B36: June | C36: 0.0388 | D36: 70500
D37: 207000
B38: Straight Average: | C38: 0.03873333333
B39: Weighted Average: | C39: 0.03873647343 | D39: =C39 -> 0.03873647343
B42: Year average: | C42: 0.0403

Sheet Cash & Cash Equiv (hidden)
K5: Whakatane Airport | O5: Whakatane Airport
B6: Whakatane Airport | K6: Current Account/Cash reconciliation Year End 30 June 2016 | O6: Current Account/Cash reconciliation Year End 30 June 2017
B8: Current Account/Cash reconciliation Year End 30 June 2011 | H8: 2013 | L8: 2017 | P8: 2018
H9: Movement | L9: Movement | P9: Movement
B10: Balance as at 1 July 2009 | E10: -16889 | G10: WDC - Opening Balance | I10: 235661 | K10: WDC - Opening Balance | M10: 703496 | O10: WDC - Opening Balance | Q10: =M31 -> 902719 | Y10: 71454
B11: 2010 Income per ledger | G11: Funding from MOT & Council Share | H11: -86490 | K11: Funding from MOT & Council Share | L11: -469871.22 | O11: Funding from MOT & Council Share | P11: =-'2019 Stmt Chg Equity'!G12 ->  | T11: Auto calc | W11: 218145
B12: Add back 09 Receivables accruals | C12: 8827 | D12: =C12 -> 8827 | G12: Net Surplus/(Deficit) after tax | H12: 154876.8388 | K12: Net Surplus/(Deficit) after tax | L12: 201360.1059 | O12: Net Surplus/(Deficit) after tax | P12: =-'Whk Airport Summary'!#REF! ->  | W12: 10187 | X12: 10187
B13: Add back 09 Income in advance | C13: -34277 | D13: =C13 -> -34277 | G13: 2012 accounts receivable | H13: -115519 | K13: 2015 accounts receivable | L13: -339317.252 | O13: 2016 accounts receivable | P13: =-L14 -> -586483.1771 | W13: -32299 | X13: -32299
B14: Less 10 Receivables accruals | C14: -7407 | D14: =C14 -> -7407 | G14: 2013 accounts receivable | H14: 51963.03 | K14: 2016 accounts receivable | L14: 586483.1771 | O14: 2017 accounts receivable | P14: =#REF! ->  | T14: Not auto calc - negative | W14: -8827 | X14: -8827
B15: Plus 10 Income in Advance | D15: =C15 -> 0 | E15: =C11+C12+C13+C14+C15 -> -32857 | G15: Capital additions | H15: 86490 | K15: Capital additions | L15: 274749.22 | O15: Capital additions | P15: =#REF! ->  | R15: =-P15 ->  | T15: Auto calc | W15: 34277 | X15: 34277 | Y15: 221483
G16: Depreciation | H16: -38506 | K16: Depreciation | L16: -52046 | O16: Depreciation | P16: =-#REF! -> 
G17: 2012 Accounts payable | H17: 10882 | K17: 2015 Accounts payable | L17: 25871.53167 | O17: 2016 Accounts payable | P17: =-L18 -> 22358.2065
G18: 2013 Accounts payable | H18: -15088.83 | K18: 2016 Accounts payable | L18: -22358.2065 | O18: 2017 Accounts payable | P18: =-#REF!-P20 -> 
G19: 2012 income in advance | H19: 35718 | K19: 2015 income in advance | L19: 25899.46833 | O19: 2016 income in advance | P19: =-L20 -> 31547.37619
G20: 2013 income in advance | H20: -35199.99 | K20: 2016 income in advance | L20: -31547.37619 | O20: 2017 income in advance | P20: =-#REF! -> 
B21: 2010 Expenditure per ledger | C21: -262051 | T21: Not auto calc - negative | W21: -260443
B22: Add back 09 Payables accruals | C22: -7700 | D22: =C22 -> -7700 | W22: -6000 | X22: -6000
B23: Add back 09 Prepayments | C23: 0 | D23: =C23 -> 0 | W23: 1704 | X23: 1704
B24: Plus 10 Fixed assets purchases | C24: -202844 | H24: 49126.04879 | L24: 199223.4483 | P24: =SUM(P11:P23) ->  | T24: Not auto calc - negative | W24: -138714
B25: Less non cash depreciation 10 | D25: =C25 -> 0 | T25: Auto calc | W25: 20417 | X25: 20417
B26: Less 10 Payables accruals | D26: =C26 -> 0 | E26: =C21+C22+C25+C26+C23+C24 -> -472595 | T26: Auto calc | W26: 7700 | X26: 7700 | Y26: -375336
B28: MOT contribution to 2010 Capex | E28: 101850 | Y28: 65510
B29: (debtor but not income)
B30: Plug
B31: Cash & cash equivalents 30 June 2010 | D31: =SUM(D12:D30) -> -40557 | E31: =SUM(E10:E30) -> -420491 | G31: Cash & cash equivalents 30 June 2013 | I31: 284787.0488 | K31: Cash & cash equivalents 30 June 2016 | M31: 902719 | O31: Cash & cash equivalents 30 June 2017 | Q31: =ROUND(SUM(+Q10+P24),0) ->  | X31: 27159 | Y31: -16889

Sheet Cover (hidden)
A19: DRAFT WHAKATANE AIRPORT JOINT VENTURE
A20: ANNUAL REPORT
A21: FOR THE YEAR ENDED 30 JUNE 2017

Sheet Index (hidden)
B1: WHAKATANE AIRPORT JOINT VENTURE
B2: ANNUAL REPORT FOR THE YEAR ENDED 30 JUNE 2017
I3: Page
B5: Message from the Chairman | I5: x
B6: About the Whakatāne Airport | I6: x
B7: A Year in Review | I7: x
B9: Financial Statements
C10: Statement of Financial Performance | I10: x
C11: Statement of Changes in Equity | I11: x
C12: Statement of Financial Position | I12: x
B14: Notes to the Financial Statements
C15: Note 1 | D15: Statement of Accounting Policies | I15: x
C16: Note 2 | D16: Operating Revenue | I16: x
C17: Note 3 | D17: Operating Expenses | I17: x
C18: Note 4 | D18: Taxation | I18: x
C19: Note 5 | D19: Sundry Receivables | I19: x
C20: Note 6 | D20: Payables and Deffered Revenue | I20: x
C21: Note 7 | D21: Property, Plant and Equipment - 2015 | I21: x
C22: Note 7 | D22: Property, Plant and Equipment - 2016 | I22: x
C23: Note 8 | D23: Equity | I23: x
C24: Note 9 | D24: Related Party Transactions | I24: x
C25: Note 10 | D25: Capital Commitments | I25: x
C26: Note 11 | D26: Contingencies | I26: x
C27: Note 12 | D27: Events after Balance Sheet Date | I27: x
C28: Note 13 | D28: Financial Instruments | I28: x
C29: Note 14 | D29: Statement of Intent | I29: x
C30: Note 15 | D30: Performance | I30: x
C31: Statement of Compliance & Responsibility | I31: x
B32: Audit Report | I32: x

Sheet Whk Airport Summary
B1: Whakatāne AIRPORT
B2: Operating Costs
C4: Actual | D4: Actual | E4: Actual
C5: 2023 | D5: 2022 | E5: 2021
B7: Revenue
B8: Operating Revenue | C8: 223350.1 | D8: 128302.0533 | E8: 143005.83
B9: Finance Income | C9: - | D9: - | E9: 3188.73
B10: Total Revenue | C10: 223350.1 | D10: 128302.0533 | E10: 146194.56
B12: Expenses
B13: Operating Expenses | C13: 737665.99 | D13: 586256.69 | E13: 584531.95
B14: WDC Personnel Costs | C14: 34959.3 | D14: 27168.79 | E14: 26093.86
B15: Depreciation and Amortisation | C15: 113061 | D15: 117038 | E15: 121201
B16: Audit Fees | C16: 50000 | D16: 40000 | E16: 30000
B17: Gains/ (Loss) on Property, Plant and Equipment disposal
B18: Total Expenses | C18: 935686.29 | D18: 770463.48 | E18: 761826.81
B20: Total Comprehensive Income (Loss) for the Year | C20: -712336.19 | D20: -642161.4267 | E20: -615632.25
D24: INC
B26: Reconcilliation to COS Report
B27: =#REF! ->  | E27: -615632.25
B29: Items included on COS report
B31: Less Interest (excluded from COS report)
B35: Total COS report
B36: Variance
D38: =D8/2 -> 64151.02667
D39: =D10-D38 -> 64151.02667

Sheet Note 16 Prior Period Adjustment (hidden)
B3: Prior Period Adjustments
B5: The amounts of $547,284 and $247,929, being the MOT contributions received in the 2018 and 2016 financial years have been credited back to the WDC partners current account, and the amount debited to the Airport’s WDC liability account in 2019. This entry corrects the previous overstatement of the WDC liability account and understatement of the WDC partners current account.
B7: The amounts of $195,122 and $151,466, being the WDC equity contributions received in the 2017 and 2016 financial years have been credited back to the WDC capital account, and the amount debited to the Airport’s WDC partners current account and MOT parners current account in 2019. This entry corrects the previous overstatement of the WDC partners current account and MOT current account, and understatement of the WDC capital account.

Sheet 2019 Stmt Chg Equity (hidden)
A1: 2015 | G1: =G9-G2 ->  | H1: -64210.53 | J1: =J9-J2 -> -235710.8745
A2: 12 | H2: 3873.876799 | J2: 3524.471206
C3: STATEMENT OF CHANGES IN EQUITY
A4: ACTYTD | C4: for the Year Ended 30 June 2019
G5: Actual | H5: Actual | J5: Actual | L5: Actual | N5: Actual | P5: Actual
G6: 2019 | H6: 2018 | J6: 2015 | L6: 2014 | N6: 2013 | P6: 2012
G7: $ | H7: $ | J7: $ | L7: $ | N7: $ | P7: $
D8: Balance at 1 July | G8: =+H14 -> 1325453.966 | H8: 1353856.732 | J8: 1003699.582 | L8: 1004563.235 | N8: 1072950.074 | P8: 998387.6802 | R8: B/fwd from closing prior year
D9: Net Surplus (Deficit) | G9: ='Whk Airport Summary'!#REF! ->  | H9: -246676.9663 | J9: -232186.4033 | L9: -60336.6532 | N9: -154876.8388 | P9: -144925.6063 | R9: Auto calc
D11: Total Recognised Income (Expenditure) | G11: =G9 ->  | H11: -246676.9663 | J11: -232186.4033 | L11: -60336.6532 | N11: -154876.8388 | P11: -144925.6063
A12: 70*11* | B12: CAPT | D12: Capital Contributions - MOT and WDC | G12: =#REF!+#REF!+#REF! ->  | H12: 218274.2 | J12: 118756.2 | L12: 59475 | N12: 86490 | P12: 219487 | R12: Balancing item
D14: Balance at the End of the Period | F14: Note 8 | G14: =G8+G9+G12 ->  | H14: 1325453.966 | J14: 890270.3786 | L14: 1003699.582 | N14: 1004563.235 | P14: 1072949.074
D16: The Notes and the Statement of Accounting Policies on pages x to x form part of the Financial Statements
D20: ** No Longer Required

Sheet Payables 2019 (hidden)
A1: GL Transaction Report
A3: Whakatane District Council
A4: Reported By: | B4: EMILYF
A5: Date: | B5: 43669
A6: Time: | B6: 03:52p.m.
A8: Report Arguments
A9: Financial Year | B9: 2019
A10: Period Start | B10: 12
A11: Period End | B11: 12
A13: GL Account | B13: PostCode Description | C13: Batch | D13: Line No | E13: Ref | F13: Period | G13: Date | H13: Code | I13: Amount | J13: Units | K13: Rate | L13: Job | M13: SubJob | N13: Analysis | O13: Narration | S13: Payment Date
A14: 70 10 10 3140 | B14: Contracts | C14: 175987 | D14: 27 | E14: 1906-NZWK | F14: 12 | G14: 2019-06-30 | H14: AP | I14: 1200.65 | O14: JUNE 2019 AERODROME AIRCRAFT | S14: 2019-07-19
A15: 70 10 10 3140 | B15: Contracts | C15: 176113 | D15: 1 | E15: 4262 | F15: 12 | G15: 2019-06-30 | H15: AP | I15: 9166 | O15: JUNE 2019 WDC AIRPORT OPERAT | S15: 2019-07-19
A16: 70 10 10 3140 | B16: Contracts | C16: 176113 | D16: 2 | E16: 4262 | F16: 12 | G16: 2019-06-30 | H16: AP | I16: 5388.61 | O16: JUNE 2019 WDC AIRPORT OPERAT | S16: 2019-07-19
A17: 70 10 10 3320 | B17: General Expenses | C17: 176113 | D17: 29 | E17: 16615 | F17: 12 | G17: 2019-06-20 | H17: AP | I17: 798 | J17: 1 | L17: R70100 | M17: 0 | N17: 3320 | O17: FITTINGS FOR RESERVOIR TANKS A | S17: 2019-07-19
A18: 70 10 10 3440 | B18: Maintenance and Repairs | C18: 175425 | D18: 104 | E18: 15000-1 | F18: 12 | G18: 2019-06-20 | H18: AP | I18: 96.96 | O18: JUNEL 2019 MAINTENANCE CHECK | S18: 2019-07-19
A19: 70 10 10 3440 | B19: Maintenance and Repairs | C19: 175508 | D19: 92 | E19: 950 | F19: 12 | G19: 2019-06-27 | H19: AP | I19: 120 | O19: REFIT VANDALISED POST AND GAT | S19: 2019-07-19
A20: 70 10 10 3440 | B20: Maintenance and Repairs | C20: 175987 | D20: 153 | E20: A9862 | F20: 12 | G20: 2019-06-30 | H20: AP | I20: 289.2 | O20: CHECKS ON AIRPORT LIGHTING | S20: 2019-07-19
A21: 70 10 10 4050 | B21: Water Purchases | C21: 175804 | D21: 22 | E21: 07141 074 001A | F21: 12 | G21: 2019-06-20 | H21: AP | I21: 27.6 | J21: 1 | L21: R70100 | M21: 0 | N21: 4050 | O21: 07141 074 00A 14MC185823 AEROD | S21: 2019-07-19
A22: 70 10 10 4050 | B22: Water Purchases | C22: 175804 | D22: 23 | E22: 07141 074 00A | F22: 12 | G22: 2019-06-20 | H22: AP | I22: 26.79 | J22: 1 | L22: R70100 | M22: 0 | N22: 4050 | O22: 07141 074 00A 100514 AERODROM | S22: 2019-07-19
A23: 70 10 10 4050 | B23: Water Purchases | C23: 175804 | D23: 24 | E23: 07141 074 00A | F23: 12 | G23: 2019-06-20 | H23: AP | I23: 26.52 | J23: 1 | L23: R70100 | M23: 0 | N23: 4050 | O23: 07141 074 00A 14MC185795 AEROD | S23: 2019-07-19
A24: 70 10 10 4050 | B24: Water Purchases | C24: 175804 | D24: 55 | E24: W 07141 074 00A | F24: 12 | G24: 2019-06-20 | H24: AP | I24: 27.33 | J24: 1 | L24: R70100 | M24: 0 | N24: 4050 | O24: WATER RATES 216 AERODROME ROAD | S24: 2019-07-19
A25: 70 10 10 4050 | B25: Water Purchases | C25: 175804 | D25: 56 | E25: W 07141 074 00H | F25: 12 | G25: 2019-06-20 | H25: AP | I25: 82.35 | J25: 1 | L25: R70100 | M25: 0 | N25: 4050 | O25: WATER 07141 074 00H METER 150 | S25: 2019-07-19
A26: 70 10 10 4050 | B26: Water Purchases | C26: 175804 | D26: 66 | E26: W07141 074 00G | F26: 12 | G26: 2019-06-20 | H26: AP | I26: 25.65 | O26: 07141 074 00G 142C AERODROME R | S26: 2019-07-19
A27: 70 10 12 3440 | B27: Maintenance and Repairs | C27: 175987 | D27: 154 | E27: A9862 | F27: 12 | G27: 2019-06-30 | H27: AP | I27: 354.2 | O27: INSPECTIONS OD RUNWAY LIGHTS | S27: 2019-07-19
A28: 70 10 14 3140 | B28: Contracts | C28: 175804 | D28: 105 | E28: 19/023-NO-5-JUNE-2019 | F28: 12 | G28: 2019-06-30 | H28: AP | I28: 49.17 | O28: JUNE 2019 19-023 BBCM CLAI | S28: 2019-07-19
A29: 70 10 14 3140 | B29: Contracts | C29: 175804 | D29: 192 | E29: 17-034-NO-27-JUNE-2019 | F29: 12 | G29: 2019-06-20 | H29: AP | I29: 94.47 | O29: JUNE 2019 17-034 LIVING DECO | S29: 2019-07-19
A30: 70 10 14 3140 | B30: Contracts | C30: 175804 | D30: 204 | E30: 17/001-NO-32-JUNE-2019 | F30: 12 | G30: 2019-06-27 | H30: AP | I30: 668.02 | O30: JUNE 2019 17-001 OCS CLAIM | S30: 2019-07-19
A31: 70 10 14 3140 | B31: Contracts | C31: 175804 | D31: 221 | E31: 17/001-NO-32-JUNE-2019 | F31: 12 | G31: 2019-06-27 | H31: AP | I31: 22.5 | O31: JUNE 2019 17-001 OCS CLAIM | S31: 2019-07-19
A32: 70 10 14 3140 | B32: Contracts | C32: 175804 | D32: 232 | E32: 17/001-NO-32-JUNE-2019 | F32: 12 | G32: 2019-06-27 | H32: AP | I32: 26.14 | O32: JUNE 2019 17-001 OCS CLAIM | S32: 2019-07-19
A33: 70 10 14 3140 | B33: Contracts | C33: 175804 | D33: 296 | E33: 17/001-NO-32-JUNE-2019 | F33: 12 | G33: 2019-06-27 | H33: AP | I33: 30.71 | O33: JUNE 2019 17-001 OCS CLAIM | S33: 2019-07-19
A34: 70 10 14 3140 | B34: Contracts | C34: 175892 | D34: 106 | E34: 16/18-MO-32-JUNE-2019 | F34: 12 | G34: 2019-06-30 | H34: AP | I34: 20.42 | O34: JUN 2019 16/18 NO 32 WASTE MAN | S34: 2019-07-19
A35: 70 10 14 3140 | B35: Contracts | C35: 175987 | D35: 141 | E35: 19/011-NO-8-JUNE-2019 | F35: 12 | G35: 2019-06-30 | H35: AP | I35: 21.46 | O35: JUNE 2019 19-011 WEC CLAIM | S35: 2019-07-19
A36: 70 10 14 3140 | B36: Contracts | C36: 176113 | D36: 87 | E36: 19/006-NO-8-JUNE-2019 | F36: 12 | G36: 2019-06-30 | H36: AP | I36: 650 | O36: JUNE 2019 19-006 ISCL CLAI | S36: 2019-07-19
A37: 70 10 14 3440 | B37: Maintenance and Repairs | C37: 175508 | D37: 113 | E37: 193401 | F37: 12 | G37: 2019-05-20 | H37: AP | I37: 121.74 | O37: BWOF RENEWAL FEE FOR 216 AEROD | S37: 2019-07-05
A38: 70 10 14 3440 | B38: Maintenance and Repairs | C38: 175804 | D38: 318 | E38: 17/001-NO-32-JUNE-2019 | F38: 12 | G38: 2019-06-27 | H38: AP | I38: 262.62 | O38: JUNE 2019 17-001 OCS CLAIM | S38: 2019-07-19
A39: 70 11 10 3230 | B39: Equipment & Materials | C39: 175111 | D39: 414 | E39: INV017657 | F39: 12 | G39: 2019-06-05 | H39: AP | I39: 6150 | O39: REPLACEMENT CLINOMETRE FOR WHA | S39: 2019-07-19
I41: =SUM(I14:I40) -> 25747.11 | O41: Always exclude GST

Sheet Note 7 PPE 2019 (hidden)
A1: 2012
A2: 12 | D2: NOTE 7 - PLANT, PROPERTY AND EQUIPMENT
A3: ACTYTD
D4: 2019 | F4: Cost/Revaluation 30 June 2018 | G4: Accumulated Depreciation and Impairment 30 June 2018 | H4: Net Book Value 30 June 2018 | I4: Additions current year | J4: Disposals current year | K4: Impairment current year | L4: Check rates vs depreciaton in policies | M4: Rate current year | N4: Depreciation current year | O4: Cost/Revaluation 30 June 2019 | P4: Accumulated Depreciation and Impairment 30 June 2019 | Q4: Net Book Value 30 June 2019
E5: Rate
D8: Land | F8: 12246 | G8: 0 | H8: 12246 | I8: 0 | N8: 0 | O8: =F8+I8-J8+M8+K8 -> 12246 | P8: =G8+K8+N8 -> 0 | Q8: =O8-P8 -> 12246
F9: 12246 | G9: 0 | H9: 12246 | I9: =SUM(I8) -> 0 | J9: =SUM(J8) -> 0 | K9: =SUM(K7:K8) -> 0 | L9: =SUM(L8) -> 0 | M9: =SUM(M8) -> 0 | N9: =SUM(N8) -> 0 | O9: =SUM(O7:O8) -> 12246 | P9: =SUM(P8) -> 0 | Q9: =SUM(Q7:Q8) -> 12246
D10: Airport
A11: 70*11*10 | D11: Runways & Taxiways | E11: 2% CP | F11: 1553192.28 | G11: 334326.8456 | H11: 1218865.434 | I11: 218052.18 | L11: 2% SL | M11: 0.02 | N11: =(F11*M11)+((I11*M11)*16.66%) -> 31790.39546 | O11: =+F11+I11+J11 -> 1771244.46 | P11: =+G11+K11+N11 -> 366117.2411 | Q11: =O11-P11 -> 1405127.219
A12: 70*11*10 | D12: Fencing | E12: 7.2% CP | F12: 69608.16 | G12: 36842.66042 | H12: 32765.49958 | I12: 0 | L12: 7.2% DV | M12: 0.072 | N12: =(H12+I12)*M12 -> 2359.11597 | O12: =+F12+I12+J12 -> 69608.16 | P12: =+G12+K12+N12 -> 39201.77639 | Q12: =O12-P12 -> 30406.38361
D13: Water Supply | E13: 1% CP | F13: 112107 | G13: 17032.18426 | H13: 95074.81574 | I13: 0 | L13: 1% SL | M13: 0.01 | N13: =(F13+I13)*M13 -> 1121.07 | O13: 112107 | P13: 18153.25426 | Q13: =O13-P13 -> 93953.74574
D14: Aprons | E14: 2% CP | F14: 24195 | G14: 19277.14995 | H14: 4917.850053 | I14: 0 | L14: 2% SL | M14: 0.02 | N14: =(F14+I14)*M14 -> 483.9 | O14: 24195 | P14: 19761.04995 | Q14: =O14-P14 -> 4433.950053
D15: Water Supply Improvement | E15: 1% CP | F15: 7592 | G15: 950.4370963 | H15: 6641.562904 | I15: 0 | L15: 1% SL | M15: 0.01 | N15: =(F15+I15)*M15 -> 75.92 | O15: 7592 | P15: 1026.357096 | Q15: =O15-P15 -> 6565.642904
D16: Radio Transmitter | E16: 20% DV | F16: 941 | G16: 941.4 | H16: 0 | I16: 0 | L16: 20% DV | M16: 0.2 | N16: =(H16+I16)*M16 -> 0 | O16: 941 | P16: 941.4 | Q16: 0
D17: Airport Signage | E17: 20%CP | F17: 17781 | G17: 14167.8 | H17: 3613.2 | I17: 0 | L17: 5%SL | M17: 0.05 | N17: =(F17+I17)*M17 -> 889.05 | O17: 17781 | P17: 15056.85 | Q17: =O17-P17 -> 2724.15
D18: Grassing | E18: 0 | F18: 30133 | G18: 0 | H18: 30133 | I18: 0 | N18: =(H18+I18)*M18 -> 0 | O18: 30133 | P18: 0 | Q18: =O18-P18 -> 30133
D19: Roading | E19: 0 | F19: 15568 | G19: 0 | H19: 15568 | I19: 0 | N19: =(H19+I19)*M19 -> 0 | O19: 15568 | P19: 0 | Q19: =O19-P19 -> 15568
D20: Security | E20: 12.5% DV | F20: 25620 | G20: 15559.13095 | H20: 10060.86905 | I20: 0 | L20: 10% DV | M20: 0.1 | N20: =(H20+I20)*M20 -> 1006.086905 | O20: 25620 | P20: 16565.21785 | Q20: =O20-P20 -> 9054.782149
D21: Runway Lighting Upgrade | I21: =257030.85+801.22+302888 -> 560720.07 | L21: 10%DV | M21: 0.1 | N21: =((H21+I21)*M21)*83.33% -> 46724.80343 | O21: =+F21+I21+J21 -> 560720.07 | P21: =+G21+K21+N21 -> 46724.80343 | Q21: =O21-P21 -> 513995.2666
F23: 1856737.44 | G23: 439097.6083 | H23: 1417640.232 | I23: =SUM(I11:I22) -> 778772.25 | J23: =SUM(J11:J22) -> 0 | K23: 0 | N23: =SUM(N11:N22) -> 84450.34177 | O23: =SUM(O11:O22) -> 2635509.69 | P23: =SUM(P11:P22) -> 523547.95 | Q23: =SUM(Q11:Q22) -> 2111962.14
D25: Terminal
D26: Paths & Parking Area | E26: 0 | F26: 12206 | G26: 5366.28 | H26: 6839.72 | I26: 0 | L26: 3% SL | M26: 0.03 | N26: =+(F26+I26)*M26 -> 366.18 | O26: =+F26+I26+J26 -> 12206 | P26: =+G26+K26+N26 -> 5732.46 | Q26: =O26-P26 -> 6473.54
D27: Building | E27: 2% CP | F27: 315272.2 | G27: 159065.1198 | H27: 156207.0802 | I27: 0 | K27: 0 | L27: 2% SL | M27: 0.02 | N27: =+(F27+I27)*M27 -> 6305.444 | O27: =+F27+I27+J27 -> 315272.2 | P27: =+G27+N27 -> 165370.5638 | Q27: =O27-P27 -> 149901.6362
D28: Floodlighting | E28: 10% DV | F28: 10874 | G28: 9009.598684 | H28: 1864.401316 | I28: 0 | L28: 10% DV | M28: 0.1 | N28: =+(H28+I28)*M28 -> 186.4401316 | O28: 10874 | P28: =+G28+K28+N28 -> 9196.038815 | Q28: 1677.961185
D29: Terminal Site Development | E29: Fixed amount | F29: 75221 | G29: 12899.678 | H29: 62321.322 | I29: 0 | J29: 0 | L29: Fixed amount | N29: 1075 | O29: 75221 | P29: =+G29+K29+N29 -> 13974.678 | Q29: 61246.322
D30: Automatic Sliding Doors | E30: 10% DV | F30: 14689 | G30: 10572.98946 | H30: 4116.010545 | I30: 0 | L30: 10% DV | M30: 0.1 | N30: =+(H30+I30)*M30 -> 411.6010545 | O30: 14689 | P30: =+G30+K30+N30 -> 10984.59051 | Q30: 3704.40949
D31: LED Lighting upgrade | F31: 28415.78 | G31: 10229.6808 | H31: 18186.0992 | L31: 10% DV | M31: 0.1 | N31: =+(H31+I31)*M31 -> 1818.60992 | O31: 28415.78 | P31: 12048.29072 | Q31: 16367.48928
D32: Electronic Security Systems | F32: 0 | G32: 0 | H32: 0 | I32: 0 | J32: 0 | K32: 0 | L32: 10% DV | M32: 0.1 | N32: =+(H32+I32)*M32 -> 0 | O32: =+F32+I32+J32 -> 0 | P32: =+G32+K32+N32 -> 0 | Q32: =O32-P32 -> 0
F34: 456677.98 | G34: 207143.3468 | H34: 249534.6332 | I34: =SUM(I26:I33) -> 0 | J34: =SUM(J26:J33) -> 0 | K34: 0 | N34: =SUM(N26:N33) -> 10163.27511 | O34: =SUM(O26:O33) -> 456677.98 | P34: =SUM(P26:P33) -> 217306.6219 | Q34: =SUM(Q26:Q33) -> 239371.3581
D36: Work Services
D37: Plant & Equipment | E37: 10% DV | F37: 7103.43 | G37: 5673.055455 | H37: 1430.374545 | I37: =4720.6+3078.38+6150 -> 13948.98 | L37: 10% DV | M37: 0.1 | N37: =(H37+I37+J37)*M37 -> 1537.935454 | O37: =+F37+I37+J37 -> 21052.41 | P37: =+G37+K37+N37 -> 7210.99091 | Q37: =O37-P37 -> 13841.41909
D38: Furniture & Fittings | E38: 20% DV | F38: 30169.27 | G38: 24189.4572 | H38: 5979.8128 | I38: 0 | L38: 20% DV | M38: 0.2 | N38: =(H38*M38)+((I38*M38)/12) -> 1195.96256 | O38: =+F38+I38+J38 -> 30169.27 | P38: =+G38+K38+N38 -> 25385.41976 | Q38: =O38-P38 -> 4783.85024
F40: 37272.7 | G40: 29862.51266 | H40: 7410.187345 | I40: =SUM(I37:I39) -> 13948.98 | J40: =SUM(J37:J39) -> 0 | K40: 0 | N40: =SUM(N37:N39) -> 2733.898014 | O40: =SUM(O37:O39) -> 51221.68 | P40: =SUM(P37:P39) -> 32596.41067 | Q40: =SUM(Q37:Q39) -> 18625.26933
F42: 2362934.12 | G42: 676103.4677 | H42: 1686831.052 | I42: =I40+I34+I23+I9 -> 792721.23 | J42: =J40+J34+J23+J9 -> 0 | K42: =K40+K34+K23+K9 -> 0 | N42: =ROUND(N9+N23+N34+N40,0) -> 97348 | O42: =O9+O23+O34+O40 -> 3155655.35 | P42: =P9+P23+P34+P40 -> 773450.9826 | Q42: =Q9+Q23+Q34+Q40 -> 2382204.767
H44: 0.5 | I44: =I42/2 -> 396360.615 | K44: =K42*H44 -> 0 | N44: 26619 | O44: Half Year Posted
D45: Lease rentals amounting to | F45: ='[1]Note 2,3'!T13 -> 125653 | G45: (2018: $124,623) relating to the lease of building space and grazing leases are included in the income statement (Note 2). | M45: =H42+I42-N42 -> 2382204.282 | N45: =N42-N44 -> 70729 | O45: Remainder to post
D46: The Airport Land is vested in Council under the Reserves Act 1977 for use as an Airport. The Airport holds the land "in substance" and is shown at the value at the date of vesting.
D47: No assets are pledged as security
D49: LED Lighting
I69: =I11+I37/2 -> 225026.67
D70: Work in Progress | J70: =(I42-I21)/2 -> 116000.58
D71: Property, plant and equipment in the course of construction is detailed below :
F72: WIP Balance $ | G72: WIP 2018 | H72: WIP Movement | J72: 11175 | N72: Capital Contributions | O72: 2019
D73: R11102 - Airport Lighting Navigation Upgrade | F73: ='[1]Note 7 PPE 2018 (2)'!F72-302888 -> 0.48 | G73: 302888.48 | H73: =F73-G73 -> -302888 | J73: =21170/2 -> 10585 | N73: WDC | O73: =I42-O74 -> 397435.95
D74: R11125 - Electronic Security System | F74: ='[1]Note 7 PPE 2018 (2)'!F73+6165.08 -> 21169.69 | G74: 15004.61 | H74: =F74-G74 -> 6165.08 | J74: =+J72-J73 -> 590 | N74: MOT | O74: =(I37/2)+(I11/2)+(-'[1]MOT Balance'!D24) -> 395285.28
D75: R11126 - Runway End Safety Area | F75: =G75+H75 -> 559591.18 | G75: 14382.68 | H75: 545208.5
D76: Total WIP | F76: =SUM(F73:F75) -> 580761.35 | G76: 332275.77 | H76: =F76-G76 -> 248485.58 | J76: =I42+F76-G76 -> 1041206.81
F80: Years | G80: Method
D81: Airport Runways, Taxiways and Apron | F81: 50 | G81: Straight Line
D82: Building | F82: 40-100 | G82: Straight Line
D83: Water Supply | F83: 75-100 | G83: Straight Line
D84: Plant & Equipment | F84: 2-10 | G84: Diminishing Value
D85: Furniture & Fittings | F85: 5 | G85: Diminishing Value
D86: Fencing & Security | F86: 10-20 | G86: Diminishing Value
D87: Terminal Site Development | G87: Fixed Amount
D88: Signage | F88: 10-20 | G88: Straight Line
D89: Lighting (Runway and Other) | F89: 5-10 | G89: Diminishing Value
D90: Paths & Parking | F90: 25-50 | G90: Straight Line
D91: Automatc Sliding Doors | F91: 5-10 | G91: Diminishing Value
D92: Electronic Security Systems | F92: 5-10 | G92: Diminishing Value

Sheet Note 7 PPE 2018 (2) (hidden)
A1: 2012
A2: 12 | D2: NOTE 7 - PLANT, PROPERTY AND EQUIPMENT
A3: ACTYTD
D4: 2018 | F4: Cost/Revaluation 30 June 2017 | G4: Accumulated Depreciation and Impairment 30 June 2017 | H4: Net Book Value 30 June 2017 | I4: Additions current year | J4: Disposals current year | K4: Impairment current year | M4: Rate current year | N4: Depreciation current year | O4: Cost/Revaluation 30 June 2018 | P4: Accumulated Depreciation and Impairment 30 June 2018 | Q4: Net Book Value 30 June 2018
E5: Rate
D8: Land | F8: 12246 | G8: 0 | H8: 12246 | I8: 0 | N8: 0 | O8: 12246 | P8: 0 | Q8: 12246
F9: 12246 | G9: 0 | H9: 12246 | I9: 0 | J9: 0 | K9: 0 | L9: 0 | M9: 0 | N9: 0 | O9: 12246 | P9: 0 | Q9: 12246
D10: Airport
A11: 70*11*10 | D11: Runways & Taxiways | E11: 2% CP | F11: 1553192.28 | G11: 303263 | H11: 1249930 | I11: 0 | L11: 2% SL | M11: 0.02 | N11: 31063.8456 | O11: 1553192.28 | P11: 334326.8456 | Q11: 1218865.434
A12: 70*11*10 | D12: Fencing | E12: 7.2% CP | F12: 69608.16 | G12: 34300.50959 | H12: 35307.65041 | I12: 0 | L12: 7.2% DV | M12: 0.072 | N12: 2542.15083 | O12: 69608.16 | P12: 36842.66042 | Q12: 32765.49958
D13: Water Supply | E13: 1% CP | F13: 112107 | G13: 15911.11426 | H13: 96195.88574 | I13: 0 | L13: 1% SL | M13: 0.01 | N13: 1121.07 | O13: 112107 | P13: 17032.18426 | Q13: 95074.81574
D14: Aprons | E14: 2% CP | F14: 24195 | G14: 18793.24995 | H14: 5401.750053 | I14: 0 | L14: 2% SL | M14: 0.02 | N14: 483.9 | O14: 24195 | P14: 19277.14995 | Q14: 4917.850053
D15: Water Supply Improvement | E15: 1% CP | F15: 7592 | G15: 874.5170963 | H15: 6717.482904 | I15: 0 | L15: 1% SL | M15: 0.01 | N15: 75.92 | O15: 7592 | P15: 950.4370963 | Q15: 6641.562904
D16: Radio Transmitter | E16: 20% DV | F16: 941 | G16: 941.4 | H16: 0 | I16: 0 | L16: 20% DV | M16: 0.2 | N16: 0 | O16: 941 | P16: 941.4 | Q16: 0
D17: Airport Signage | E17: 20%CP | F17: 17781 | G17: 10611.6 | H17: 7169.4 | I17: 0 | L17: 20%SL | M17: 0.2 | N17: 3556.2 | O17: 17781 | P17: 14167.8 | Q17: 3613.2
D18: Grassing | E18: 0 | F18: 30133 | G18: 0 | H18: 30133 | I18: 0 | N18: 0 | O18: 30133 | P18: 0 | Q18: 30133
D19: Roading | E19: 0 | F19: 15568 | G19: 0 | H19: 15568 | I19: 0 | N19: 0 | O19: 15568 | P19: 0 | Q19: 15568
D20: Security | E20: 12.5% DV | F20: 25620 | G20: 14121.86394 | H20: 11498.13606 | I20: 0 | M20: 0.125 | N20: 1437.267008 | O20: 25620 | P20: 15559.13095 | Q20: 10060.86905
F23: 1856737.44 | G23: 398817.2548 | H23: 1457921.305 | I23: 0 | J23: 0 | K23: 0 | N23: 40280.35344 | O23: 1856737.44 | P23: 439097.6083 | Q23: 1417640.232
D25: Terminal
D26: Paths & Parking Area | E26: 0 | F26: 12206 | G26: 5000.1 | H26: 7205.9 | I26: 0 | L26: 3% SL | M26: 0.03 | N26: 366.18 | O26: 12206 | P26: 5366.28 | Q26: 6839.72
D27: Building | E27: 2% CP | F27: 297891 | G27: 153107.2998 | H27: 144783.7002 | I27: 17381.2 | K27: 0 | L27: 2% SL | M27: 0.02 | N27: 5957.82 | O27: 315272.2 | P27: 159065.1198 | Q27: 156207.0802
D28: Floodlighting | E28: 10% DV | F28: 10874 | G28: 8802.442982 | H28: 2071.557018 | I28: 0 | L28: 10% DV | M28: 0.1 | N28: 207.1557018 | O28: 10874 | P28: 9009.598684 | Q28: 1864.401316
D29: Terminal Site Development | E29: Fixed amount | F29: 75221 | G29: 11824.678 | H29: 63396.322 | I29: 0 | J29: 0 | L29: Fixed amount | N29: 1075 | O29: 75221 | P29: 12899.678 | Q29: 62321.322
D30: Automatic Sliding Doors | E30: 10% DV | F30: 14689 | G30: 10115.65495 | H30: 4573.34505 | I30: 0 | L30: 10% DV | M30: 0.1 | N30: 457.334505 | O30: 14689 | P30: 10572.98946 | Q30: 4116.010545
D31: LED Lighting upgrade | F31: 28415.78 | G31: 5683.156 | H31: 22732.624 | L31: 20% DV | M31: 0.2 | N31: 4546.5248 | O31: 28415.78 | P31: 10229.6808 | Q31: 18186.0992
F33: 439296.78 | G33: 194533.3318 | H33: 244763.4482 | I33: 17381.2 | J33: 0 | K33: 0 | N33: 12610.01501 | O33: 456677.98 | P33: 207143.3468 | Q33: 249534.6332
D35: Work Services
D36: Plant & Equipment | E36: 10% DV | F36: 7103.43 | G36: 5514.12495 | H36: 1589.30505 | I36: 0 | L36: 10% DV | M36: 0.1 | N36: 158.930505 | O36: 7103.43 | P36: 5673.055455 | Q36: 1430.374545
D37: Furniture & Fittings | E37: 20% DV | F37: 30169.27 | G37: 22694.504 | H37: 7474.766 | I37: 0 | L37: 20% DV | M37: 0.2 | N37: 1494.9532 | O37: 30169.27 | P37: 24189.4572 | Q37: 5979.8128
F39: 37272.7 | G39: 28208.62895 | H39: 9064.07105 | I39: 0 | J39: 0 | K39: 0 | N39: 1653.883705 | O39: 37272.7 | P39: 29862.51266 | Q39: 7410.187345
F41: 2345552.92 | G41: 621559 | H41: 1723995 | I41: 17381.2 | J41: 0 | K41: 0 | N41: 54544 | O41: 2362934.12 | P41: 676103.4677 | Q41: 1686831.052
H43: 0.5 | I43: 8690.6 | K43: 0
D44: Lease rentals amounting to | F44: 124623 | G44: (2017: $122,017) relating to the lease of building space and grazing leases are included in the income statement (Note 2).
D45: The Airport Land is vested in Council under the Reserves Act 1977 for use as an Airport. The Airport holds the land "in substance" and is shown at the value at the date of vesting.
D46: No assets are pledged as security
D48: LED Lighting
D69: Work in Progress
D70: Property, plant and equipment in the course of construction is detailed below :
F71: WIP Balance $
D72: R11102 - Airport Lighting Navigation Upgrade | F72: 302888.48
D73: R11125 - Electronic Security System | F73: 15004.61
D74: R11126 - Runway End Safety Area | F74: 14382.68
D75: Total WIP | F75: 332275.77

Sheet Revenue analysis old (hidden)
A1: GLAccount | B1: Entity | C1: Activity | D1: Costcentre | E1: PostCodeDescription | F1: Batch | G1: LineNumber | H1: Ref | I1: Period | J1: Date | K1: Code | L1: Amount | M1: Type | N1: Job | O1: Comments | P1: Invoice period | Q1: fdsf | R1: Analysis | S1: Narration | T1: CreditorDebtorName | U1: Months in Advance | V1: Income in Advance | W1: Receivableat 30/06/2020 | X1: Income to 30 June | Z1: paid on
A2: 70 10 10 1340 | B2: Reportable Council-ctrl Orgnis | C2: Whakatane Airport | D2: Whakatane Airport | E2: Rentals and Leases | F2: 176027 | G2: 9 | H2: J0612 | I2: 1 | J2: 2019-06-30 | K2: JNL | L2: -2331 | S2: FOX-01.07.19 - 31.11.19 | U2: 0 | V2: 0 | W2: 0 | X2: =-L2 -> 2331
A3: 70 10 10 1340 | B3: Reportable Council-ctrl Orgnis | C3: Whakatane Airport | D3: Whakatane Airport | E3: Rentals and Leases | F3: 176215 | G3: 2 | I3: 1 | J3: 2019-06-30 | K3: JNL | L3: 2331 | S3: FOX-01.07.19 - 31.11.19-J0612 airport code reversed | V3: 0 | W3: 0 | X3: -2331
A4: 70 10 10 1340 | B4: Reportable Council-ctrl Orgnis | C4: Whakatane Airport | D4: Whakatane Airport | E4: Rentals and Leases | F4: 176218 | G4: 1 | H4: J0629 | I4: 1 | J4: 2019-06-30 | K4: JNL | L4: -721.11 | M4: Commercial | P4: 01/02/19-31/08/19 | S4: 189859/-ROBSON, RICHARD PETER-01/02/19-31/08/19 | U4: 0 | V4: 0 | W4: 0 | X4: 721.11
A5: 70 10 10 1340 | B5: Reportable Council-ctrl Orgnis | C5: Whakatane Airport | D5: Whakatane Airport | E5: Rentals and Leases | F5: 176218 | G5: 2 | H5: J0629 | I5: 1 | J5: 2019-06-30 | K5: JNL | L5: -333.92 | M5: Commercial | P5: 01/02/19-31/07/19 | S5: 189862/-D & B RUTLEDGE LIMITED-01/02/19-31/07/19 | U5: 0 | V5: 0 | W5: 0 | X5: 333.92
A6: 70 10 10 1340 | B6: Reportable Council-ctrl Orgnis | C6: Whakatane Airport | D6: Whakatane Airport | E6: Rentals and Leases | F6: 176218 | G6: 3 | H6: J0629 | I6: 1 | J6: 2019-06-30 | K6: JNL | L6: -3800 | M6: Grazing | P6: 01/04/19-31/10/19 | R6: 142D Aerodrome Road | S6: 191124/-GRAHAM WILLIAM JOSHUA & KAYE R-01/04/19-31/10/19 | U6: 0 | V6: 0 | W6: 0 | X6: 3800
A7: 70 10 10 1340 | B7: Reportable Council-ctrl Orgnis | C7: Whakatane Airport | D7: Whakatane Airport | E7: Rentals and Leases | F7: 176218 | G7: 4 | H7: J0629 | I7: 1 | J7: 2019-06-30 | K7: JNL | L7: -2026.88 | M7: Grazing | P7: 01/06-30/11/19 | S7: 193106/-FOX, JAMES SMITH-01/06-30/11/19 | U7: 0 | V7: 0 | W7: 0 | X7: 2026.88
A8: 70 10 10 1340 | B8: Reportable Council-ctrl Orgnis | C8: Whakatane Airport | D8: Whakatane Airport | E8: Rentals and Leases | F8: 176218 | G8: 5 | H8: J0629 | I8: 1 | J8: 2019-06-30 | K8: JNL | L8: -1972.83 | M8: Grazing | P8: 01/06-30/11/19 | S8: 193107/-MARTIN, PETER DAVID HEDLEY-01/06-30/11/19 | U8: 0 | V8: 0 | W8: 0 | X8: 1972.83
A9: 70 10 10 1340 | B9: Reportable Council-ctrl Orgnis | C9: Whakatane Airport | D9: Whakatane Airport | E9: Rentals and Leases | F9: 176218 | G9: 6 | H9: J0629 | I9: 1 | J9: 2019-06-30 | K9: JNL | L9: -1083 | M9: Commercial | P9: 01/06-30/11/19 | S9: 193110/-WALKER, GEORGE-01/06-30/11/19 | U9: 0 | V9: 0 | W9: 0 | X9: 1083
A10: 70 10 10 1340 | B10: Reportable Council-ctrl Orgnis | C10: Whakatane Airport | D10: Whakatane Airport | E10: Rentals and Leases | F10: 176218 | G10: 7 | H10: J0629 | I10: 1 | J10: 2019-06-30 | K10: JNL | L10: -3926.15 | M10: Grazing | P10: 01/06-30/11/19 | S10: 193111/-NOORD, HARMINA NIP-01/06-30/11/19 | U10: 0 | V10: 0 | W10: 0 | X10: 3926.15
A11: 70 10 10 1340 | B11: Reportable Council-ctrl Orgnis | C11: Whakatane Airport | D11: Whakatane Airport | E11: Rentals and Leases | F11: 176218 | G11: 8 | H11: J0629 | I11: 1 | J11: 2019-06-30 | K11: JNL | L11: -6107.65 | M11: Grazing | P11: 01/06-30/11/19 | S11: 193118/-POWER, BRIAN PHILIP-01/06-30/11/19 | U11: 0 | V11: 0 | W11: 0 | X11: 6107.65 | Z11: Income in advance for 18-19 reversed.
A12: 70 10 10 1340 | B12: Reportable Council-ctrl Orgnis | C12: Whakatane Airport | D12: Whakatane Airport | E12: Rentals and Leases | F12: 176218 | G12: 9 | H12: J0629 | I12: 1 | J12: 2019-06-30 | K12: JNL | L12: -1216.13 | M12: Grazing | P12: 01/06-30/11/19 | S12: 193119/-ANGLE PARK LIMITED-01/06-30/11/19 | U12: 0 | V12: 0 | W12: 0 | X12: 1216.13
A13: 70 10 10 1340 | B13: Reportable Council-ctrl Orgnis | C13: Whakatane Airport | D13: Whakatane Airport | E13: Rentals and Leases | F13: 176218 | G13: 10 | H13: J0629 | I13: 1 | J13: 2019-06-30 | K13: JNL | L13: -2938.03 | M13: Grazing | P13: 01/06-30/11/19 | S13: 193126/-ANGLE PARK LIMITED-01/06-30/11/19 | U13: 0 | V13: 0 | W13: 0 | X13: 2938.03
A14: 70 10 10 1340 | B14: Reportable Council-ctrl Orgnis | C14: Whakatane Airport | D14: Whakatane Airport | E14: Rentals and Leases | F14: 176218 | G14: 11 | H14: J0629 | I14: 1 | J14: 2019-06-30 | K14: JNL | L14: -2716.02 | M14: Grazing | P14: 01/06-30/11/19 | S14: 193129/-VAN DEN TOP, ESTATE OF GERRIT-01/06-30/11/19 | U14: 0 | V14: 0 | W14: 0 | X14: 2716.02
A15: 70 10 10 1340 | B15: Reportable Council-ctrl Orgnis | C15: Whakatane Airport | D15: Whakatane Airport | E15: Rentals and Leases | F15: 176218 | G15: 12 | H15: J0629 | I15: 1 | J15: 2019-06-30 | K15: JNL | L15: -4913.68 | M15: Grazing | P15: 01/06-30/11/19 | S15: 193131/-GRAHAM WILLIAM JOSHUA & KAYE R-01/06-30/11/19 | U15: 0 | V15: 0 | W15: 0 | X15: 4913.68
A16: 70 10 10 1340 | B16: Reportable Council-ctrl Orgnis | C16: Whakatane Airport | D16: Whakatane Airport | E16: Rentals and Leases | F16: 176218 | G16: 13 | H16: J0629 | I16: 1 | J16: 2019-06-30 | K16: JNL | L16: -576 | M16: Commercial | P16: 2019-07-01 | S16: 193137/-FRONTIER BUILDINGS LIMITED-43647 | U16: 0 | V16: 0 | W16: 0 | X16: 576
A17: 70 10 10 1340 | B17: Reportable Council-ctrl Orgnis | C17: Whakatane Airport | D17: Whakatane Airport | E17: Rentals and Leases | F17: 176218 | G17: 14 | H17: J0629 | I17: 1 | J17: 2019-06-30 | K17: JNL | L17: -1310.08 | M17: Commercial | P17: 01/06-30/11/19 | S17: 193140/-WHAKATANE HANGAR PARTNERSHIP-01/06-30/11/19 | U17: 0 | V17: 0 | W17: 0 | X17: 1310.08
A18: 70 10 14 1340 | B18: Reportable Council-ctrl Orgnis | C18: Whakatane Airport | D18: Airport Buildings | E18: Rentals and Leases | F18: 176218 | G18: 15 | H18: J0629 | I18: 1 | J18: 2019-06-30 | K18: JNL | L18: -488.33 | M18: Building | P18: 2020-06-01 | S18: 193138/-PAYNE, JOSHUA NATHAN-01/06-30/11/19 | U18: 0 | V18: 0 | W18: 0 | X18: 488.33
A19: 70 10 10 1340 | B19: Reportable Council-ctrl Orgnis | C19: Whakatane Airport | D19: Whakatane Airport | E19: Rentals and Leases | F19: 179686 | G19: 2 | H19: 197435/ | I19: 1 | J19: 2019-07-01 | K19: SI | L19: -1250 | M19: Commercial | O19: Set off with cr note | P19: 01.07.19. - 31.0.20. | R19: 216 Aerodrome Road | S19: SUPERAIR LIMITED | T19: SUPERAIR LIMITED | U19: 0 | V19: 0 | W19: 0 | X19: 1250 | Y19: done
A20: 70 10 10 1340 | B20: Reportable Council-ctrl Orgnis | C20: Whakatane Airport | D20: Whakatane Airport | E20: Rentals and Leases | F20: 179686 | G20: 4 | H20: 197437/ | I20: 1 | J20: 2019-07-01 | K20: SI | L20: -4000 | M20: Commercial | O20: Cr note set off-197703 | P20: 01.07.18 - 30.06.19 | R20: 218/4 AERODROME ROAD | S20: BP OIL NEW ZEALAND LIMITED | T20: BP OIL NEW ZEALAND LIMITED | U20: 0 | V20: 0 | W20: 0 | X20: 4000 | Y20: done | Z20: 2019-09-16
A21: 70 10 10 1340 | B21: Reportable Council-ctrl Orgnis | C21: Whakatane Airport | D21: Whakatane Airport | E21: Rentals and Leases | F21: 177011 | G21: 49 | H21: 195023/ | I21: 1 | J21: 2019-07-01 | K21: SI | L21: -250 | M21: Commercial | P21: 2019-01-07 | R21: 216 Aerodrome Road | S21: EAST BAY AVIATION LTD | T21: EAST BAY AVIATION LTD | U21: 0 | V21: 0 | W21: 0 | X21: 250 | Y21: done | Z21: 2019-08-02
A22: 70 10 10 1340 | B22: Reportable Council-ctrl Orgnis | C22: Whakatane Airport | D22: Whakatane Airport | E22: Rentals and Leases | F22: 177011 | G22: 50 | H22: 195024/ | I22: 1 | J22: 2019-07-01 | K22: SI | L22: -576 | M22: Commercial | P22: 01.08.19 - 31.08.19 | R22: 144 Aerodrome Road | S22: FRONTIER BUILDINGS LIMITED | T22: FRONTIER BUILDINGS LIMITED | U22: 0 | V22: 0 | W22: 576 | X22: 576 | Y22: done | Z22: not paid
A23: 70 10 10 1340 | B23: Reportable Council-ctrl Orgnis | C23: Whakatane Airport | D23: Whakatane Airport | E23: Rentals and Leases | F23: 180237 | G23: 107 | H23: 197702/ | I23: 3 | J23: 2019-07-01 | K23: SI | L23: -1250 | M23: Commercial | P23: 01/07/19-31/12/19 | R23: 216 Aerodrome Road | S23: SUPERAIR LIMITED | T23: SUPERAIR LIMITED | U23: 0 | V23: 0 | W23: 0 | X23: 1250 | Y23: done | Z23: 2019-11-07 | AC23: $4,150 per annum with the increase to
A24: 70 10 10 1340 | B24: Reportable Council-ctrl Orgnis | C24: Whakatane Airport | D24: Whakatane Airport | E24: Rentals and Leases | F24: 180237 | G24: 108 | H24: 197704/ | I24: 3 | J24: 2019-07-01 | K24: SI | L24: -4150 | M24: Commercial | O24: Set off with cr note-200495 | P24: 01.07.19 - 30.06.20 | R24: d218/4 AERODROME ROAD | S24: BP OIL NEW ZEALAND | T24: AIR BP | U24: 0 | V24: 0 | W24: 0 | X24: 4150 | Y24: done | Z24: 2019-12-04 | AA24: Cr note | AC24: cover the period 01.10.18 to 30.06.19 -
A25: 70 10 10 1340 | B25: Reportable Council-ctrl Orgnis | C25: Whakatane Airport | D25: Whakatane Airport | E25: Rentals and Leases | F25: 178132 | G25: 62 | H25: 196029/ | I25: 1 | J25: 2019-07-31 | K25: SI | L25: -1262.82 | M25: Building | P25: 2019-07-01 | S25: AIR CHATHAM'S LTD | T25: AIR CHATHAM'S LTD | U25: 0 | V25: 0 | W25: 0 | X25: 1262.82 | Y25: done | Z25: 2019-08-23
A26: 70 10 10 1300 | B26: Reportable Council-ctrl Orgnis | C26: Whakatane Airport | D26: Whakatane Airport | E26: Landing Fees | F26: 178132 | G26: 61 | H26: 196029/ | I26: 1 | J26: 2019-07-31 | K26: SI | L26: -6629.79 | M26: landing fees | P26: 2020-07-01 | S26: AIR CHATHAM'S LTD | T26: AIR CHATHAM'S LTD | U26: 0 | V26: 0 | W26: 0 | X26: 6629.79 | Y26: done | Z26: 2019-08-23
A27: 70 10 10 1340 | B27: Reportable Council-ctrl Orgnis | C27: Whakatane Airport | D27: Whakatane Airport | E27: Rentals and Leases | F27: 179612 | G27: 85 | H27: 197439/ | I27: 2 | J27: 2019-08-01 | K27: SI | L27: -1622.5 | M27: Commercial | O27: Set off with Cr note | P27: 01.02.20 - 31.08.20 | R27: 228 AERODROME ROAD | S27: ROBSON, RICHARD PETER | T27: ROBSON, RICHARD PETER | U27: 0 | V27: 0 | W27: 0 | X27: =-L27 -> 1622.5 | Y27: done | Z27: 2019-09-16
A28: 70 10 10 1340 | B28: Reportable Council-ctrl Orgnis | C28: Whakatane Airport | D28: Whakatane Airport | E28: Rentals and Leases | F28: 179612 | G28: 88 | H28: 197442/ | I28: 2 | J28: 2019-08-01 | K28: SI | L28: -2290 | M28: Commercial | O28: Set off with cr note | P28: 01.02.2020 - 31.08.2020 | R28: 222 Aerodrome Road | S28: D & B RUTLEDGE LIMITED | T28: D & B RUTLEDGE LIMITED | U28: 0 | V28: 0 | W28: 0 | X28: =-L28 -> 2290 | Y28: done | Z28: 2019-09-16
A29: 70 10 10 1340 | B29: Reportable Council-ctrl Orgnis | C29: Whakatane Airport | D29: Whakatane Airport | E29: Rentals and Leases | F29: 179612 | G29: 90 | H29: 197444/ | I29: 2 | J29: 2019-08-01 | K29: SI | L29: -250 | M29: Commercial | P29: 01.08.19 - 31.08.19 | R29: 216 AERODROME RD | S29: EAST BAY AVIATION LTD | T29: EAST BAY AVIATION LTD | U29: 0 | V29: 0 | W29: 0 | X29: =-L29 -> 250 | Y29: done | Z29: 2019-10-03
A30: 70 10 10 1340 | B30: Reportable Council-ctrl Orgnis | C30: Whakatane Airport | D30: Whakatane Airport | E30: Rentals and Leases | F30: 179612 | G30: 91 | H30: 197445/ | I30: 2 | J30: 2019-08-01 | K30: SI | L30: -576 | M30: Commercial | P30: 01.09.19 - 30.09.19 | R30: 144 AERODROME RD | S30: FRONTIER BUILDINGS LIMITED | T30: FRONTIER BUILDINGS LIMITED | U30: 0 | V30: 0 | W30: 0 | X30: =-L30 -> 576 | Y30: Done | Z30: 2019-09-26
A31: 70 10 10 1340 | B31: Reportable Council-ctrl Orgnis | C31: Whakatane Airport | D31: Whakatane Airport | E31: Rentals and Leases | F31: 180237 | G31: 103 | H31: 197694/ | I31: 3 | J31: 2019-08-01 | K31: SI | L31: -2290 | M31: Commercial | P31: 01.08.19 - 31.01.2020 | R31: 222 Aerodrome Road | S31: D & B RUTLEDGE LIMITED | T31: D & B RUTLEDGE LIMITED | U31: =ROUND(2/7,2) -> 0.29 | V31: =ROUND(-L31*U31,2) -> 664.1 | W31: 0 | X31: =+-L31-V31 -> 1625.9 | Y31: done | Z31: 2019-09-24 | AC31: The Deed Of Renewal Of Lease
A32: 70 10 10 1340 | B32: Reportable Council-ctrl Orgnis | C32: Whakatane Airport | D32: Whakatane Airport | E32: Rentals and Leases | F32: 180237 | G32: 106 | H32: 197700/ | I32: 3 | J32: 2019-08-01 | K32: SI | L32: -1622.5 | M32: Commercial | P32: 01.02.20 - 31.08.20 | R32: 228 AERODROME ROAD | S32: ROBSON, RICHARD PETER | T32: ROBSON, RICHARD PETER | U32: =ROUND(2/7,2) -> 0.29 | V32: =-L32*U32 -> 470.525 | W32: 0 | X32: =-L32-V32 -> 1151.975 | Y32: done | Z32: 2019-10-03 | AC32: dated 28 November 2018 - from $4,000 to
A33: 70 10 10 1340 | B33: Reportable Council-ctrl Orgnis | C33: Whakatane Airport | D33: Whakatane Airport | E33: Rentals and Leases | F33: 179687 | G33: 13 | H33: 197555/ | I33: 2 | J33: 2019-08-31 | K33: SI | L33: -1342.33 | M33: Building | P33: 1/8/2019-31/08/2019 | S33: AIR CHATHAM'S LTD | T33: AIR CHATHAM'S LTD | U33: 0 | V33: 0 | W33: 0 | X33: =-L33 -> 1342.33 | Y33: done | Z33: 2019-09-30
A34: 70 10 10 1300 | B34: Reportable Council-ctrl Orgnis | C34: Whakatane Airport | D34: Whakatane Airport | E34: Landing Fees | F34: 179687 | G34: 12 | H34: 197555/ | I34: 2 | J34: 2019-08-31 | K34: SI | L34: -7047.23 | M34: landing fees | P34: 2020-08-01 | S34: AIR CHATHAM'S LTD | T34: AIR CHATHAM'S LTD | U34: 0 | V34: 0 | W34: 0 | X34: 7047.23 | Y34: done | Z34: 2019-09-30
A35: 70 10 10 1340 | B35: Reportable Council-ctrl Orgnis | C35: Whakatane Airport | D35: Whakatane Airport | E35: Rentals and Leases | F35: 180237 | G35: 58 | H35: 197462/ | I35: 3 | J35: 2019-09-01 | K35: SI | L35: -250 | M35: Commercial | P35: 01.09.19 - 31.09.19 | Q35: 216 Aerodrome Road | S35: EAST BAY AVIATION LTD | T35: EAST BAY AVIATION LTD | U35: 0 | V35: 0 | W35: 0 | X35: =-L35 -> 250 | Y35: done | Z35: 2019-12-03
A36: 70 10 10 1340 | B36: Reportable Council-ctrl Orgnis | C36: Whakatane Airport | D36: Whakatane Airport | E36: Rentals and Leases | F36: 180237 | G36: 59 | H36: 197463/ | I36: 3 | J36: 2019-09-01 | K36: SI | L36: -576 | M36: Commercial | P36: 2019-09-01 | R36: 144 Aerodrome Road | S36: FRONTIER BUILDINGS LIMITED | T36: FRONTIER BUILDINGS LIMITED | U36: 0 | V36: 0 | W36: 0 | X36: =-L36 -> 576 | Y36: done | Z36: 2019-10-24
A37: 70 10 10 1340 | B37: Reportable Council-ctrl Orgnis | C37: Whakatane Airport | D37: Whakatane Airport | E37: Rentals and Leases | F37: 180237 | G37: 168 | H37: 197986/ | I37: 3 | J37: 2019-09-01 | K37: SI | L37: -4150 | M37: Commercial | P37: 01/07/19-30/06/20 | S37: SUPERAIR LIMITED | T37: BP OIL NEW ZEALAND | U37: 0 | V37: =-L37*U37 -> 0 | W37: 0 | X37: =-L37-V37 -> 4150 | Y37: done | Z37: 2019-12-02 | AC37: 9 months at $12.50 per month + gst
A38: 70 10 10 1340 | B38: Reportable Council-ctrl Orgnis | C38: Whakatane Airport | D38: Whakatane Airport | E38: Rentals and Leases | F38: 180237 | G38: 102 | H38: 197692/ | I38: 3 | J38: 2019-09-16 | K38: SI | L38: -112.5 | M38: Commercial | P38: 01/18-06/19 | S38: BP OIL NEW ZEALAND | T38: AIR BP | U38: 0 | V38: 0 | W38: =X38 -> 112.5 | X38: =-L38 -> 112.5 | Y38: done | AC38: Arrears For 218/4 Aerodrome Road As Per
A39: 70 10 10 1340 | B39: Reportable Council-ctrl Orgnis | C39: Whakatane Airport | D39: Whakatane Airport | E39: Rentals and Leases | F39: 182668 | G39: 8 | H39: 197693/ | I39: 3 | J39: 2019-09-16 | K39: SI | L39: 2290 | M39: Commercial | O39: Cr note | P39: 01.02.2020 - 31.08.2020 | Q39: 222 Aerodrome Road | S39: D & B RUTLEDGE LIMITED | T39: D & B RUTLEDGE LIMITED | U39: 0 | V39: 0 | W39: 0 | X39: -2290 | Y39: done | AC39: 9*12.5=112.5
A40: 70 10 10 1340 | B40: Reportable Council-ctrl Orgnis | C40: Whakatane Airport | D40: Whakatane Airport | E40: Rentals and Leases | F40: 182668 | G40: 11 | H40: 197699/ | I40: 3 | J40: 2019-09-16 | K40: SI | L40: 1622.5 | M40: Commercial | O40: Cr note | P40: 01.02.20 - 31.08.20 | S40: ROBSON, RICHARD PETER | T40: ROBSON, RICHARD PETER | U40: 0 | V40: 0 | W40: 0 | X40: -1622.5 | Y40: done
A41: 70 10 10 1340 | B41: Reportable Council-ctrl Orgnis | C41: Whakatane Airport | D41: Whakatane Airport | E41: Rentals and Leases | F41: 182668 | G41: 12 | H41: 197701/ | I41: 3 | J41: 2019-09-16 | K41: SI | L41: 1250 | M41: Commercial | O41: Cr note | P41: 01.07.19. - 31.0.20. | S41: SUPERAIR LIMITED | T41: SUPERAIR LIMITED | U41: 0 | V41: 0 | W41: 0 | X41: -1250 | Y41: done | Z41: 2019-09-16
A42: 70 10 10 1340 | B42: Reportable Council-ctrl Orgnis | C42: Whakatane Airport | D42: Whakatane Airport | E42: Rentals and Leases | F42: 182668 | G42: 13 | H42: 197703/ | I42: 3 | J42: 2019-09-16 | K42: SI | L42: 4000 | M42: Commercial | O42: Cr note-197437 | P42: 01.07.18 - 30.06.19 | Q42: 218/4 AERODROME ROAD | S42: BP OIL NEW ZEALAND LIMITED | T42: BP OIL NEW ZEALAND LIMITED | U42: 0 | V42: 0 | W42: 0 | X42: -4000 | Y42: done
A43: 70 10 10 1340 | B43: Reportable Council-ctrl Orgnis | C43: Whakatane Airport | D43: Whakatane Airport | E43: Rentals and Leases | F43: 180258 | G43: 52 | H43: J0060 | I43: 3 | J43: 2019-09-30 | K43: JNL | L43: -1237.5 | M43: Commercial | P43: 01/04/19-30/06/19 | S43: Land lease for 200 Aerodrome Road for the period - 01.07.19 -31.03.20 | T43: Meterological Service of New Zealand | U43: 0 | V43: 0 | W43: 0 | X43: 1237.5 | Y43: Income in advance for 18-19 reversed
A44: 70 10 10 1340 | B44: Reportable Council-ctrl Orgnis | C44: Whakatane Airport | D44: Whakatane Airport | E44: Rentals and Leases | F44: 182896 | G44: 112 | H44: 198662/ | I44: 3 | J44: 2019-09-30 | K44: SI | L44: -2084.97 | M44: Building | P44: 2019-09-01 | S44: AIR CHATHAM'S LTD | T44: AIR CHATHAM'S LTD | U44: 0 | V44: 0 | W44: 0 | X44: 2084.97 | Y44: done | Z44: 2019-11-29
A45: 70 10 10 1300 | B45: Reportable Council-ctrl Orgnis | C45: Whakatane Airport | D45: Whakatane Airport | E45: Landing Fees | F45: 182896 | G45: 111 | H45: 198662/ | I45: 3 | J45: 2019-09-30 | K45: SI | L45: -5621.63 | M45: landing fees | P45: 2020-09-01 | S45: AIR CHATHAM'S LTD | T45: AIR CHATHAM'S LTD | U45: 0 | V45: 0 | W45: 0 | X45: 5621.63 | Y45: done | Z45: 2019-11-29
A46: 70 10 10 1340 | B46: Reportable Council-ctrl Orgnis | C46: Whakatane Airport | D46: Whakatane Airport | E46: Rentals and Leases | F46: 183320 | G46: 20 | H46: 198678/ | I46: 4 | J46: 2019-10-01 | K46: SI | L46: -6650 | M46: Grazing | O46: Set off with cr note | P46: 1 Oct 2019 - 31 March 2020 | R46: 142D Aerodrome Road | S46: GRAHAM WILLIAM JOSHUA & KAYE R | T46: GRAHAM WILLIAM JOSHUA & KAYE R | U46: 0 | V46: =-+L46*U46 -> 0 | W46: 0 | X46: =-L46 -> 6650 | Y46: done | Z46: cr note set off
A47: 70 10 10 1340 | B47: Reportable Council-ctrl Orgnis | C47: Whakatane Airport | D47: Whakatane Airport | E47: Rentals and Leases | F47: 183320 | G47: 29 | H47: 198686/ | I47: 4 | J47: 2019-10-01 | K47: SI | L47: -250 | M47: Commercial | P47: 01.10.19 - 31.10.19 | R47: 216 AERODROME RD | S47: EAST BAY AVIATION LTD | T47: EAST BAY AVIATION LTD | U47: 0 | V47: 0 | W47: 0 | X47: =-L47 -> 250 | Y47: done | Z47: 2019-12-03
A48: 70 10 10 1340 | B48: Reportable Council-ctrl Orgnis | C48: Whakatane Airport | D48: Whakatane Airport | E48: Rentals and Leases | F48: 183320 | G48: 30 | H48: 198687/ | I48: 4 | J48: 2019-10-01 | K48: SI | L48: -576 | M48: Commercial | P48: 01.11.19 - 30.11.19 | R48: 144 AERODROME RD | S48: FRONTIER BUILDINGS LIMITED | T48: FRONTIER BUILDINGS LIMITED | U48: 0 | V48: 0 | W48: 0 | X48: =-L48 -> 576 | Y48: done | Z48: 2019-11-21
A49: 70 10 10 1340 | B49: Reportable Council-ctrl Orgnis | C49: Whakatane Airport | D49: Whakatane Airport | E49: Rentals and Leases | F49: 183844 | G49: 1 | H49: 199613/ | I49: 4 | J49: 2019-10-01 | K49: SI | L49: -6650 | M49: Grazing | P49: 1 Oct 2019 - 31 March 2020 | R49: 142C Aerodrome Road | S49: GRAHAM WILLIAM JOSHUA & KAYE R | T49: GRAHAM WILLIAM JOSHUA & KAYE R | U49: 0 | V49: =-+L49*U49 -> 0 | W49: 0 | X49: =-L49-V49 -> 6650 | Y49: done | Z49: 2019-11-22
A50: 70 10 10 1340 | B50: Reportable Council-ctrl Orgnis | C50: Whakatane Airport | D50: Whakatane Airport | E50: Rentals and Leases | F50: 184270 | G50: 2 | H50: 200027/ | I50: 4 | J50: 2019-10-31 | K50: SI | L50: -1290.37 | M50: Building | P50: 2019-10-01 | S50: AIR CHATHAM'S LTD | T50: AIR CHATHAM'S LTD | U50: 0 | V50: 0 | W50: 0 | X50: =-L50 -> 1290.37 | Y50: done | Z50: 2019-11-29
A51: 70 10 10 1300 | B51: Reportable Council-ctrl Orgnis | C51: Whakatane Airport | D51: Whakatane Airport | E51: Landing Fees | F51: 184270 | G51: 1 | H51: 200027/ | I51: 4 | J51: 2019-10-31 | K51: SI | L51: -6774.42 | M51: landing fees | P51: 2020-10-01 | S51: AIR CHATHAM'S LTD | T51: AIR CHATHAM'S LTD | U51: 0 | V51: 0 | W51: 0 | X51: 6774.42 | Y51: done | Z51: 2019-11-29
A52: 70 10 10 1340 | B52: Reportable Council-ctrl Orgnis | C52: Whakatane Airport | D52: Whakatane Airport | E52: Rentals and Leases | F52: 183896 | G52: 3 | H52: 199482/ | I52: 5 | J52: 2019-11-01 | K52: SI | L52: -250 | M52: Commercial | P52: 2019-01-11 | R52: 216 Aerodrome Road | S52: EAST BAY AVIATION LTD | T52: EAST BAY AVIATION LTD | U52: 0 | V52: 0 | W52: 0 | X52: =-L52 -> 250 | Y52: done | Z52: 3 dec 2019/09 jan 20
A53: 70 10 10 1340 | B53: Reportable Council-ctrl Orgnis | C53: Whakatane Airport | D53: Whakatane Airport | E53: Rentals and Leases | F53: 183896 | G53: 4 | H53: 199483/ | I53: 5 | J53: 2019-11-01 | K53: SI | L53: -576 | M53: Commercial | P53: 2019-12-01 | R53: 144 Aerodrome Road | S53: FRONTIER BUILDINGS LIMITED | T53: FRONTIER BUILDINGS LIMITED | U53: 0 | V53: 0 | W53: 0 | X53: =-L53 -> 576 | Y53: done | Z53: 2020-01-23
A54: 70 10 10 1340 | B54: Reportable Council-ctrl Orgnis | C54: Whakatane Airport | D54: Whakatane Airport | E54: Rentals and Leases | F54: 183898 | G54: 1 | H54: 199614/ | I54: 5 | J54: 2019-11-07 | K54: SI | L54: 6650 | M54: Grazing | O54: Cr note | P54: 1 Oct 2019 - 31 March 2020 | R54: 142C Aerodrome Road | S54: GRAHAM WILLIAM JOSHUA & KAYE R | T54: GRAHAM WILLIAM JOSHUA & KAYE R | U54: 0 | V54: 0 | W54: 0 | X54: =-+L54 -> -6650 | Y54: done | Z54: cr note
A55: 70 10 10 1340 | B55: Reportable Council-ctrl Orgnis | C55: Whakatane Airport | D55: Whakatane Airport | E55: Rentals and Leases | F55: 183896 | G55: 24 | H55: 199751/ | I55: 5 | J55: 2019-11-08 | K55: SI | L55: -2037.61 | M55: Commercial | P55: 11/18-10/19 | Q55: SUB LEASE AVIATION FUEL FACILITY METER READ | S55: AIRFUELS.COM LIMITED | T55: AIRFUELS.COM LIMITED | U55: 0 | V55: 0 | W55: 0 | X55: =-L55 -> 2037.61 | Y55: done | Z55: 2020-01-06
A56: 70 10 10 1340 | B56: Reportable Council-ctrl Orgnis | C56: Whakatane Airport | D56: Whakatane Airport | E56: Rentals and Leases | F56: 184914 | G56: 3 | H56: 200796/ | I56: 5 | J56: 2019-11-30 | K56: SI | L56: -2157.97 | M56: Building | P56: 2019-11-01 | S56: AIR CHATHAM'S LTD | T56: AIR CHATHAM'S LTD | U56: 0 | V56: 0 | W56: 0 | X56: =-L56 -> 2157.97 | Y56: done | Z56: 2020-02-26
A57: 70 10 10 1300 | B57: Reportable Council-ctrl Orgnis | C57: Whakatane Airport | D57: Whakatane Airport | E57: Landing Fees | F57: 184914 | G57: 2 | H57: 200796/ | I57: 5 | J57: 2019-11-30 | K57: SI | L57: -5818.43 | M57: landing fees | P57: 2020-11-01 | S57: AIR CHATHAM'S LTD | T57: AIR CHATHAM'S LTD | U57: 0 | V57: 0 | W57: 0 | X57: 5818.43 | Y57: done | Z57: 2020-02-26
A58: 70 10 10 1340 | B58: Reportable Council-ctrl Orgnis | C58: Whakatane Airport | D58: Whakatane Airport | E58: Rentals and Leases | F58: 185980 | G58: 68 | H58: 201511/ | I58: 6 | J58: 2019-12-01 | K58: SI | L58: -2432.25 | M58: Grazing | P58: 01.12.19 - 31.05.20 | R58: 142A AERODROME RD | S58: FOX, JAMES SMITH | T58: FOX, JAMES SMITH | U58: 0 | V58: 0 | W58: =+-L58 -> 2432.25 | X58: =-L58-V58 -> 2432.25 | Y58: done | Z58: 2020-07-22
A59: 70 10 10 1340 | B59: Reportable Council-ctrl Orgnis | C59: Whakatane Airport | D59: Whakatane Airport | E59: Rentals and Leases | F59: 185980 | G59: 69 | H59: 201539/ | I59: 6 | J59: 2019-12-01 | K59: SI | L59: -2367.39 | M59: Grazing | P59: 01.12.19 - 31.05.20 | R59: 142B AERODROME ROAD | S59: MARTIN, PETER DAVID HEDLEY | T59: MARTIN, PETER DAVID HEDLEY | U59: 0 | V59: 0 | W59: 0 | X59: =-L59 -> 2367.39 | Y59: done | Z59: 2020-02-26
A60: 70 10 10 1340 | B60: Reportable Council-ctrl Orgnis | C60: Whakatane Airport | D60: Whakatane Airport | E60: Rentals and Leases | F60: 185980 | G60: 70 | H60: 201540/ | I60: 6 | J60: 2019-12-01 | K60: SI | L60: -1299.6 | M60: Commercial | P60: 01.12.19 - 31.05.20 | R60: 226 AERODROME ROAD | S60: WALKER, GEORGE | T60: WALKER, GEORGE | U60: 0 | V60: 0 | W60: 0 | X60: =+-L60 -> 1299.6 | Y60: done | Z60: 2020-02-26
A61: 70 10 10 1340 | B61: Reportable Council-ctrl Orgnis | C61: Whakatane Airport | D61: Whakatane Airport | E61: Rentals and Leases | F61: 185980 | G61: 71 | H61: 201541/ | I61: 6 | J61: 2019-12-01 | K61: SI | L61: -4711.38 | M61: Grazing | P61: 01.12.19 - 31.05.20 | R61: 92 AERODROME ROAD | S61: NOORD, HARMINA NIP | T61: NOORD, HARMINA NIP | U61: 0 | V61: 0 | W61: 0 | X61: =+-L61-V61 -> 4711.38 | Y61: done | Z61: 2020-02-20
A62: 70 10 10 1340 | B62: Reportable Council-ctrl Orgnis | C62: Whakatane Airport | D62: Whakatane Airport | E62: Rentals and Leases | F62: 185980 | G62: 72 | H62: 201542/ | I62: 6 | J62: 2019-12-01 | K62: SI | L62: -7329.18 | M62: Grazing | P62: 01.12.19 - 31.05.20 | R62: 142F AERODROME ROAD | S62: POWER, BRIAN PHILIP | T62: POWER, BRIAN PHILIP | U62: 0 | V62: 0 | W62: 0 | X62: =+-L62-V62 -> 7329.18 | Y62: done | Z62: 2020-02-24
A63: 70 10 10 1340 | B63: Reportable Council-ctrl Orgnis | C63: Whakatane Airport | D63: Whakatane Airport | E63: Rentals and Leases | F63: 185980 | G63: 73 | H63: 201543/ | I63: 6 | J63: 2019-12-01 | K63: SI | L63: -1073.27 | M63: Grazing | P63: 01.12.19 - 31.05.20 | R63: 142G AERODROME ROAD | S63: ANGLE PARK LIMITED | T63: ANGLE PARK LIMITED | U63: 0 | V63: 0 | W63: 0 | X63: =+-L63-V63 -> 1073.27 | Y63: done | Z63: 2020-04-22
A64: 70 10 10 1340 | B64: Reportable Council-ctrl Orgnis | C64: Whakatane Airport | D64: Whakatane Airport | E64: Rentals and Leases | F64: 185980 | G64: 74 | H64: 201544/ | I64: 6 | J64: 2019-12-01 | K64: SI | L64: -3525.63 | M64: Grazing | P64: 01.12.19 - 31.05.20 | R64: 142D AERODROME ROAD | S64: ANGLE PARK LIMITED | T64: ANGLE PARK LIMITED | U64: 0 | V64: 0 | W64: 0 | X64: =+-L64-V64 -> 3525.63 | Y64: done | Z64: 2020-04-22
A65: 70 10 10 1340 | B65: Reportable Council-ctrl Orgnis | C65: Whakatane Airport | D65: Whakatane Airport | E65: Rentals and Leases | F65: 185980 | G65: 75 | H65: 201545/ | I65: 6 | J65: 2019-12-01 | K65: SI | L65: -3259.22 | M65: Grazing | P65: 01.12.19 - 31.05.20 | R65: 142E AERODROME ROAD | S65: VAN DEN TOP, ESTATE OF GERRIT | T65: VAN DEN TOP, ESTATE OF GERRIT | U65: 0 | V65: 0 | W65: 0 | X65: =+-L65-V65 -> 3259.22 | Y65: done | Z65: 2020-02-21
A66: 70 10 10 1340 | B66: Reportable Council-ctrl Orgnis | C66: Whakatane Airport | D66: Whakatane Airport | E66: Rentals and Leases | F66: 185980 | G66: 76 | H66: 201547/ | I66: 6 | J66: 2019-12-01 | K66: SI | L66: -5896.41 | M66: Grazing | O66: set off with 203680 | P66: 01.12.19 - 31.05.20 | R66: 144 AERODROME ROAD | S66: GRAHAM WILLIAM JOSHUA & KAYE R | T66: GRAHAM WILLIAM JOSHUA & KAYE R | U66: 0 | V66: 0 | W66: 0 | X66: =-L66-V66 -> 5896.41 | Y66: done | Z66: 2020-03-12 | AA66: cr note
A67: 70 10 10 1340 | B67: Reportable Council-ctrl Orgnis | C67: Whakatane Airport | D67: Whakatane Airport | E67: Rentals and Leases | F67: 185980 | G67: 78 | H67: 201549/ | I67: 6 | J67: 2019-12-01 | K67: SI | L67: -1422 | M67: landing fees | P67: 01.06.19 - 31.11.19 | R67: 224 AERODROME ROAD | S67: SCHULTE, JACK | T67: SCHULTE, JACK | U67: 0 | V67: 0 | W67: 0 | X67: =-L67 -> 1422 | Y67: done | Z67: 2020-01-30
A68: 70 10 10 1340 | B68: Reportable Council-ctrl Orgnis | C68: Whakatane Airport | D68: Whakatane Airport | E68: Rentals and Leases | F68: 185980 | G68: 79 | H68: 201549/ | I68: 6 | J68: 2019-12-01 | K68: SI | L68: -1422 | M68: landing fees | P68: 01.12.19 - 31.05.20 | R68: 224 AERODROME ROAD | S68: SCHULTE, JACK | T68: SCHULTE, JACK | U68: 0 | V68: 0 | W68: 0 | X68: =-V68-L68 -> 1422 | Y68: done | Z68: 2020-01-30
A69: 70 10 10 1340 | B69: Reportable Council-ctrl Orgnis | C69: Whakatane Airport | D69: Whakatane Airport | E69: Rentals and Leases | F69: 185980 | G69: 81 | H69: 201551/ | I69: 6 | J69: 2019-12-01 | K69: SI | L69: -250 | M69: Commercial | P69: 1.12.19 - 31.12.19 | R69: 216 AERODROME RD | S69: EAST BAY AVIATION LTD | T69: EAST BAY AVIATION LTD | U69: 0 | V69: 0 | W69: 0 | X69: =-L69 -> 250 | Y69: done | Z69: 2020-02-04
A70: 70 10 10 1340 | B70: Reportable Council-ctrl Orgnis | C70: Whakatane Airport | D70: Whakatane Airport | E70: Rentals and Leases | F70: 185980 | G70: 82 | H70: 201552/ | I70: 6 | J70: 2019-12-01 | K70: SI | L70: -576 | M70: Commercial | P70: 01.01.20 - 31.01.20 | R70: 144 AERODROME RD | S70: FRONTIER BUILDINGS LIMITED | T70: FRONTIER BUILDINGS LIMITED | U70: 0 | V70: 0 | W70: 0 | X70: =+-L70 -> 576 | Y70: done | Z70: 2020-01-31
A71: 70 10 10 1340 | B71: Reportable Council-ctrl Orgnis | C71: Whakatane Airport | D71: Whakatane Airport | E71: Rentals and Leases | F71: 185980 | G71: 85 | H71: 201555/ | I71: 6 | J71: 2019-12-01 | K71: SI | L71: -1572.1 | M71: Commercial | P71: 01.12.19 - 31.05.20 | R71: 228 AERODROME ROAD | S71: WHAKATANE HANGAR PARTNERSHIP | T71: WHAKATANE HANGAR PARTNERSHIP | U71: 0 | V71: 0 | W71: 0 | X71: =+-L71 -> 1572.1 | Y71: done | Z71: 2020-02-27
A72: 70 10 14 1340 | B72: Reportable Council-ctrl Orgnis | C72: Whakatane Airport | D72: Airport Buildings | E72: Rentals and Leases | F72: 185980 | G72: 83 | H72: 201553/ | I72: 6 | J72: 2019-12-01 | K72: SI | L72: -586 | M72: Building | P72: 2020-12-01 | S72: PAYNE, JOSHUA NATHAN | T72: PAYNE, JOSHUA NATHAN | U72: 0 | V72: 0 | W72: 0 | X72: =-L72 -> 586 | Y72: done | Z72: 2020-02-20
A73: 70 10 10 1340 | B73: Reportable Council-ctrl Orgnis | C73: Whakatane Airport | D73: Whakatane Airport | E73: Rentals and Leases | F73: 184715 | G73: 6 | H73: 200495/ | I73: 6 | J73: 2019-12-04 | K73: SI | L73: 4150 | M73: Commercial | O73: Cr note | P73: 01.07.19 - 30.06.20 | R73: 218/4 AERODROME ROAD | S73: AIR BP | T73: AIR BP | U73: 0 | V73: 0 | W73: 0 | X73: -4150 | Y73: done | Z73: 2019-12-04 | AA73: cr note against inv 197704
A74: 70 10 10 1340 | B74: Reportable Council-ctrl Orgnis | C74: Whakatane Airport | D74: Whakatane Airport | E74: Rentals and Leases | F74: 185980 | G74: 96 | H74: 201599/ | I74: 6 | J74: 2019-12-31 | K74: SI | L74: -1142.22 | M74: Building | P74: 2020-12-01 | S74: AIR CHATHAM'S LTD | T74: AIR CHATHAM'S LTD | U74: 0 | V74: 0 | W74: 0 | X74: =-L74 -> 1142.22 | Y74: done | Z74: 2020-02-26
A75: 70 10 10 1300 | B75: Reportable Council-ctrl Orgnis | C75: Whakatane Airport | D75: Whakatane Airport | E75: Landing Fees | F75: 185980 | G75: 95 | H75: 201599/ | I75: 6 | J75: 2019-12-31 | K75: SI | L75: -7010.13 | M75: landing fees | P75: 2020-12-01 | S75: AIR CHATHAM'S LTD | T75: AIR CHATHAM'S LTD | U75: 0 | V75: 0 | W75: 0 | X75: =-+L75 -> 7010.13 | Y75: done | Z75: 2020-02-26
A76: 70 10 10 1340 | B76: Reportable Council-ctrl Orgnis | C76: Whakatane Airport | D76: Whakatane Airport | E76: Rentals and Leases | F76: 186463 | G76: 94 | H76: 202015/ | I76: 7 | J76: 2020-01-01 | K76: SI | L76: -1250 | M76: Commercial | P76: 01.01.20 - 30.06.20 | R76: Land lease for 216 Aerodrome Road for the period | S76: SUPERAIR LIMITED | T76: SUPERAIR LIMITED | U76: 0 | V76: 0 | W76: 0 | X76: =+-L76 -> 1250 | Y76: done | Z76: 2020-02-24
A77: 70 10 10 1340 | B77: Reportable Council-ctrl Orgnis | C77: Whakatane Airport | D77: Whakatane Airport | E77: Rentals and Leases | F77: 186463 | G77: 98 | H77: 202019/ | I77: 7 | J77: 2020-01-01 | K77: SI | L77: -250 | M77: Commercial | P77: 1.01.20 - 31.01.20 | R77: 216 AERODROME RD - EASTBAY AVIATION LIMITED | S77: EAST BAY AVIATION LTD | T77: EAST BAY AVIATION LTD | U77: 0 | V77: 0 | W77: 0 | X77: 250 | Y77: done | Z77: 2020-03-03
A78: 70 10 10 1340 | B78: Reportable Council-ctrl Orgnis | C78: Whakatane Airport | D78: Whakatane Airport | E78: Rentals and Leases | F78: 186463 | G78: 99 | H78: 202020/ | I78: 7 | J78: 2020-01-01 | K78: SI | L78: -576 | M78: Commercial | P78: 01.02.20 - 28.02.20 | R78: LAND LEASE 144 AERODROME RD - | S78: FRONTIER BUILDINGS LIMITED | T78: FRONTIER BUILDINGS LIMITED | U78: 0 | V78: =-ROUND(L78*U78,2) -> 0 | W78: 0 | X78: 576 | Y78: done | Z78: 2020-02-14
A79: 70 10 10 1340 | B79: Reportable Council-ctrl Orgnis | C79: Whakatane Airport | D79: Whakatane Airport | E79: Rentals and Leases | F79: 186341 | G79: 23 | H79: 201948/ | I79: 7 | J79: 2020-01-28 | K79: SI | L79: 1459.35 | M79: Grazing | R79: ANGLE PARK LIMITED | S79: ANGLE PARK LIMITED | T79: ANGLE PARK LIMITED | U79: 0 | V79: 0 | W79: 0 | X79: -1459.35 | Y79: done | Z79: 2020-01-28 | AA79: cr note against in 188148
A80: 70 10 10 1340 | B80: Reportable Council-ctrl Orgnis | C80: Whakatane Airport | D80: Whakatane Airport | E80: Rentals and Leases | F80: 186341 | G80: 24 | H80: 201949/ | I80: 7 | J80: 2020-01-28 | K80: SI | L80: 1459.35 | M80: Grazing | R80: ANGLE PARK LIMITED | S80: ANGLE PARK LIMITED | T80: ANGLE PARK LIMITED | U80: 0 | V80: =-ROUND(L80*U80,2) -> 0 | W80: 0 | X80: -1459.35 | Y80: done | Z80: 2020-01-28 | AA80: cr note against in 193119
A81: 70 10 10 1340 | B81: Reportable Council-ctrl Orgnis | C81: Whakatane Airport | D81: Whakatane Airport | E81: Rentals and Leases | F81: 186341 | G81: 25 | H81: 201950/ | I81: 7 | J81: 2020-01-28 | K81: SI | L81: 5896.41 | M81: Grazing | R81: GRAHAM WILLIAM JOSHUA & KAYE R | S81: GRAHAM WILLIAM JOSHUA & KAYE R | T81: GRAHAM WILLIAM JOSHUA & KAYE R | U81: 0 | V81: 0 | W81: 0 | X81: -5896.41 | Y81: done | Z81: 2020-03-12 | AA81: cr note against inv 181831
A82: 70 10 10 1340 | B82: Reportable Council-ctrl Orgnis | C82: Whakatane Airport | D82: Whakatane Airport | E82: Rentals and Leases | F82: 186341 | G82: 26 | H82: 201951/ | I82: 7 | J82: 2020-01-28 | K82: SI | L82: 5896.41 | M82: Grazing | R82: GRAHAM WILLIAM JOSHUA & KAYE R | S82: GRAHAM WILLIAM JOSHUA & KAYE R | T82: GRAHAM WILLIAM JOSHUA & KAYE R | U82: 0 | V82: 0 | W82: 0 | X82: -5896.41 | Y82: done | Z82: 2020-03-12 | AA82: cr note against inv 188151
A83: 70 10 10 1340 | B83: Reportable Council-ctrl Orgnis | C83: Whakatane Airport | D83: Whakatane Airport | E83: Rentals and Leases | F83: 186341 | G83: 27 | H83: 201952/ | I83: 7 | J83: 2020-01-28 | K83: SI | L83: 5896.41 | M83: Grazing | R83: GRAHAM WILLIAM JOSHUA & KAYE R | S83: GRAHAM WILLIAM JOSHUA & KAYE R | T83: GRAHAM WILLIAM JOSHUA & KAYE R | U83: 0 | V83: 0 | W83: 0 | X83: -5896.41 | Y83: done | Z83: 2020-03-12 | AA83: cr note against 193131
A84: 70 10 10 1340 | B84: Reportable Council-ctrl Orgnis | C84: Whakatane Airport | D84: Whakatane Airport | E84: Rentals and Leases | F84: 186463 | G84: 81 | H84: 201968/ | I84: 7 | J84: 2020-01-29 | K84: SI | L84: -972.9 | M84: Grazing | P84: INVOICE 188148 01.02.19 - 31.05.19,INVOICE 193119 01.06.19 - 01.08.19 | R84: ANGLE PARK LIMITED | S84: ANGLE PARK LIMITED | T84: ANGLE PARK LIMITED | U84: 0 | V84: 0 | W84: 0 | X84: 972.9 | Y84: done | Z84: not paid | AA84: changes made
A85: 70 10 10 1340 | B85: Reportable Council-ctrl Orgnis | C85: Whakatane Airport | D85: Whakatane Airport | E85: Rentals and Leases | F85: 186463 | G85: 82 | H85: 201968/ | I85: 7 | J85: 2020-01-29 | K85: SI | L85: -486.45 | M85: Grazing | P85: INVOICE 188148 01.02.19 - 31.05.19,INVOICE 193119 01.06.19 - 01.08.19 | R85: ANGLE PARK LIMITED | S85: ANGLE PARK LIMITED | T85: ANGLE PARK LIMITED | U85: 0 | V85: 0 | W85: 0 | X85: 486.45 | Y85: done | Z85: not paid
A86: 70 10 10 1340 | B86: Reportable Council-ctrl Orgnis | C86: Whakatane Airport | D86: Whakatane Airport | E86: Rentals and Leases | F86: 186464 | G86: 1 | H86: 201969/ | I86: 7 | J86: 2020-01-29 | K86: SI | L86: 972.9 | M86: Grazing | R86: ANGLE PARK LIMITED | S86: ANGLE PARK LIMITED | T86: ANGLE PARK LIMITED | U86: 0 | V86: 0 | W86: 0 | X86: -972.9 | Y86: done | Z86: credit note against in 188148
A87: 70 10 10 1340 | B87: Reportable Council-ctrl Orgnis | C87: Whakatane Airport | D87: Whakatane Airport | E87: Rentals and Leases | F87: 186464 | G87: 2 | H87: 201969/ | I87: 7 | J87: 2020-01-29 | K87: SI | L87: 486.45 | M87: Grazing | R87: ANGLE PARK LIMITED | S87: ANGLE PARK LIMITED | T87: ANGLE PARK LIMITED | U87: 0 | V87: 0 | W87: 0 | X87: -486.45 | Y87: done | Z87: credit note against in 193119
A88: 70 10 10 1340 | B88: Reportable Council-ctrl Orgnis | C88: Whakatane Airport | D88: Whakatane Airport | E88: Rentals and Leases | F88: 186464 | G88: 3 | H88: 201970/ | I88: 7 | J88: 2020-01-29 | K88: SI | L88: 1965.47 | M88: Grazing | O88: Cr note | R88: GRAHAM WILLIAM JOSHUA & KAYE R | S88: GRAHAM WILLIAM JOSHUA & KAYE R | T88: GRAHAM WILLIAM JOSHUA & KAYE R | U88: 0 | V88: 0 | W88: 0 | X88: -1965.47 | Y88: done | Z88: cr note against 203355
A89: 70 10 10 1340 | B89: Reportable Council-ctrl Orgnis | C89: Whakatane Airport | D89: Whakatane Airport | E89: Rentals and Leases | F89: 186464 | G89: 4 | H89: 201970/ | I89: 7 | J89: 2020-01-29 | K89: SI | L89: 3930.94 | M89: Grazing | R89: GRAHAM WILLIAM JOSHUA & KAYE R | S89: GRAHAM WILLIAM JOSHUA & KAYE R | T89: GRAHAM WILLIAM JOSHUA & KAYE R | U89: 0 | V89: 0 | W89: 0 | X89: -3930.94 | Y89: done | Z89: cr note against 203355
A90: 70 10 10 1340 | B90: Reportable Council-ctrl Orgnis | C90: Whakatane Airport | D90: Whakatane Airport | E90: Rentals and Leases | F90: 186464 | G90: 5 | H90: 201970/ | I90: 7 | J90: 2020-01-29 | K90: SI | L90: 1965.47 | M90: Grazing | R90: GRAHAM WILLIAM JOSHUA & KAYE R | S90: GRAHAM WILLIAM JOSHUA & KAYE R | T90: GRAHAM WILLIAM JOSHUA & KAYE R | U90: 0 | V90: 0 | W90: 0 | X90: -1965.47 | Y90: done | Z90: cr note against 203355
A91: 70 10 10 1300 | B91: Reportable Council-ctrl Orgnis | C91: Whakatane Airport | D91: Whakatane Airport | E91: Landing Fees | F91: 186918 | G91: 75 | H91: 202666/ | I91: 7 | J91: 2020-01-31 | K91: SI | L91: -5267.97 | M91: Landing Fees | P91: LAND FEES FOR THE MONTH OF JAN 2020 | R91: AIR CHATHAM'S LTD | S91: AIR CHATHAM'S LTD | T91: AIR CHATHAM'S LTD | U91: 0 | V91: 0 | W91: 0 | X91: 5267.97 | Y91: done | Z91: 2020-02-26
A92: 70 10 10 1340 | B92: Reportable Council-ctrl Orgnis | C92: Whakatane Airport | D92: Whakatane Airport | E92: Rentals and Leases | F92: 186918 | G92: 76 | H92: 202666/ | I92: 7 | J92: 2020-01-31 | K92: SI | L92: -1953.81 | M92: Building | P92: 2020-01-01 | R92: AIR CHATHAM'S LTD | S92: AIR CHATHAM'S LTD | T92: AIR CHATHAM'S LTD | U92: 0 | V92: 0 | W92: 0 | X92: 1953.81 | Y92: done | Z92: 2020-02-26
A93: 70 10 10 1340 | B93: Reportable Council-ctrl Orgnis | C93: Whakatane Airport | D93: Whakatane Airport | E93: Rentals and Leases | F93: 187113 | G93: 1 | H93: 202078/ | I93: 8 | J93: 2020-02-01 | K93: SI | L93: -1622.5 | M93: Commercial | P93: 01.02.20 - 31.07.20 | R93: LAND LEASE FOR 228 AERODROME ROAD | S93: ROBSON, RICHARD PETER | T93: ROBSON, RICHARD PETER | U93: =ROUND(1/6,2) -> 0.17 | V93: 275.83 | W93: 0 | X93: =+-L93-V93 -> 1346.67 | Y93: done | Z93: 2020-03-24
A94: 70 10 10 1340 | B94: Reportable Council-ctrl Orgnis | C94: Whakatane Airport | D94: Whakatane Airport | E94: Rentals and Leases | F94: 187113 | G94: 4 | H94: 202081/ | I94: 8 | J94: 2020-02-01 | K94: SI | L94: -2290 | M94: Commercial | P94: 01.02.20 - 31.07.20 | R94: 222 Aerodrome Road | S94: D & B RUTLEDGE LIMITED | T94: D & B RUTLEDGE LIMITED | U94: =+ROUND(1/6,2) -> 0.17 | V94: 389.3 | W94: 0 | X94: =+-L94-V94 -> 1900.7 | Y94: done | Z94: 2020-03-24
A95: 70 10 10 1340 | B95: Reportable Council-ctrl Orgnis | C95: Whakatane Airport | D95: Whakatane Airport | E95: Rentals and Leases | F95: 187113 | G95: 6 | H95: 202083/ | I95: 8 | J95: 2020-02-01 | K95: SI | L95: -250 | M95: Commercial | P95: 01.02.20 - 29.02.20 | R95: 216 AERODROME RD - EASTBAY AVIATION LIMITED | S95: EAST BAY AVIATION LTD | T95: EAST BAY AVIATION LTD | U95: 0 | V95: 0 | W95: 0 | X95: =+-L95 -> 250 | Y95: done | Z95: 2020-04-02
A96: 70 10 10 1340 | B96: Reportable Council-ctrl Orgnis | C96: Whakatane Airport | D96: Whakatane Airport | E96: Rentals and Leases | F96: 187113 | G96: 7 | H96: 202084/ | I96: 8 | J96: 2020-02-01 | K96: SI | L96: -576 | M96: Commercial | P96: 01.03.20 - 31.03.20 | R96: LAND LEASE 144 AERODROME RD | S96: FRONTIER BUILDINGS LIMITED | T96: FRONTIER BUILDINGS LIMITED | U96: 0 | V96: 0 | W96: 0 | X96: 576 | Y96: done | Z96: 2020-03-06
A97: 70 10 10 1340 | B97: Reportable Council-ctrl Orgnis | C97: Whakatane Airport | D97: Whakatane Airport | E97: Rentals and Leases | F97: 186881 | G97: 3 | H97: 202184/ | I97: 8 | J97: 2020-02-04 | K97: SI | L97: 632.1 | M97: Grazing | O97: Cr note | R97: GRAHAM WILLIAM JOSHUA & KAYE R | S97: GRAHAM WILLIAM JOSHUA & KAYE R | T97: GRAHAM WILLIAM JOSHUA & KAYE R | U97: 0 | V97: 0 | W97: 0 | X97: -632.1 | Y97: done | Z97: credited the rates
A98: 70 10 10 1340 | B98: Reportable Council-ctrl Orgnis | C98: Whakatane Airport | D98: Whakatane Airport | E98: Rentals and Leases | F98: 186881 | G98: 4 | H98: 202184/ | I98: 8 | J98: 2020-02-04 | K98: SI | L98: 632.12 | M98: Grazing | R98: GRAHAM WILLIAM JOSHUA & KAYE R | S98: GRAHAM WILLIAM JOSHUA & KAYE R | T98: GRAHAM WILLIAM JOSHUA & KAYE R | U98: 0 | V98: 0 | W98: 0 | X98: -632.12 | Y98: done | Z98: credited the rates
A99: 70 10 10 1340 | B99: Reportable Council-ctrl Orgnis | C99: Whakatane Airport | D99: Whakatane Airport | E99: Rentals and Leases | F99: 186881 | G99: 5 | H99: 202184/ | I99: 8 | J99: 2020-02-04 | K99: SI | L99: 632.08 | M99: Grazing | R99: GRAHAM WILLIAM JOSHUA & KAYE R | S99: GRAHAM WILLIAM JOSHUA & KAYE R | T99: GRAHAM WILLIAM JOSHUA & KAYE R | U99: 0 | V99: 0 | W99: 0 | X99: -632.08 | Y99: done | Z99: credited the rates
A100: 70 10 10 1340 | B100: Reportable Council-ctrl Orgnis | C100: Whakatane Airport | D100: Whakatane Airport | E100: Rentals and Leases | F100: 186881 | G100: 6 | H100: 202184/ | I100: 8 | J100: 2020-02-04 | K100: SI | L100: 457.96 | M100: Grazing | R100: GRAHAM WILLIAM JOSHUA & KAYE R | S100: GRAHAM WILLIAM JOSHUA & KAYE R | T100: GRAHAM WILLIAM JOSHUA & KAYE R | U100: 0 | V100: 0 | W100: 0 | X100: -457.96 | Y100: done | Z100: credited the rates
A101: 70 10 10 1340 | B101: Reportable Council-ctrl Orgnis | C101: Whakatane Airport | D101: Whakatane Airport | E101: Rentals and Leases | F101: 188512 | G101: 6 | H101: 203811/ | I101: 8 | J101: 2020-02-29 | K101: SI | L101: -1900.91 | M101: Building | P101: 2020-02-01 | R101: AIR CHATHAM'S LTD | S101: AIR CHATHAM'S LTD | T101: AIR CHATHAM'S LTD | U101: 0 | V101: 0 | W101: =+-L101 -> 1900.91 | X101: 1900.91 | Y101: done | Z101: not paid | AA101: 2020-07-28
A102: 70 10 10 1300 | B102: Reportable Council-ctrl Orgnis | C102: Whakatane Airport | D102: Whakatane Airport | E102: Landing Fees | F102: 188512 | G102: 5 | H102: 203811/ | I102: 8 | J102: 2020-02-29 | K102: SI | L102: -5125.36 | M102: Landing Fees | P102: LAND FEES FOR THE MONTH OF FEB 2020 | R102: AIR CHATHAM'S LTD | S102: AIR CHATHAM'S LTD | T102: AIR CHATHAM'S LTD | U102: 0 | V102: 0 | W102: =+-L102 -> 5125.36 | X102: 5125.36 | Y102: done | Z102: not paid | AA102: 2020-07-28
A103: 70 10 10 1340 | B103: Reportable Council-ctrl Orgnis | C103: Whakatane Airport | D103: Whakatane Airport | E103: Rentals and Leases | F103: 187976 | G103: 52 | H103: 203342/ | I103: 9 | J103: 2020-03-01 | K103: SI | L103: -250 | M103: Commercial | P103: 01.03.20 - 31.03.20 | Q103: 216 AERODROME RD - EASTBAY AVIATION LIMITED | R103: EAST BAY AVIATION LTD | S103: EAST BAY AVIATION LTD | T103: EAST BAY AVIATION LTD | U103: 0 | V103: 0 | W103: 0 | X103: 250 | Y103: done | Z103: 2020-05-04
A104: 70 10 10 1340 | B104: Reportable Council-ctrl Orgnis | C104: Whakatane Airport | D104: Whakatane Airport | E104: Rentals and Leases | F104: 187976 | G104: 53 | H104: 203343/ | I104: 9 | J104: 2020-03-01 | K104: SI | L104: -576 | M104: Commercial | P104: 01.04.20 - 30.04.20 | Q104: LAND LEASE 144 AERODROME RD | R104: FRONTIER BUILDINGS LIMITED | S104: FRONTIER BUILDINGS LIMITED | T104: FRONTIER BUILDINGS LIMITED | U104: 0 | V104: 0 | W104: 0 | X104: 576 | Y104: done | Z104: 2020-05-14
A105: 70 10 10 1340 | B105: Reportable Council-ctrl Orgnis | C105: Whakatane Airport | D105: Whakatane Airport | E105: Rentals and Leases | F105: 187976 | G105: 64 | H105: 203355/ | I105: 9 | J105: 2020-03-05 | K105: SI | L105: -7861.85 | M105: Grazing | P105: CREDITED IN ERROR | Q105: CREDITED IN ERROR | R105: GRAHAM WILLIAM JOSHUA & KAYE R | S105: GRAHAM WILLIAM JOSHUA & KAYE R | T105: GRAHAM WILLIAM JOSHUA & KAYE R | U105: 0 | V105: 0 | W105: 0 | X105: 7861.85 | Y105: done | Z105: 2020-04-14 | AA105: cr note raised 201970
A106: 70 10 10 1340 | B106: Reportable Council-ctrl Orgnis | C106: Whakatane Airport | D106: Whakatane Airport | E106: Rentals and Leases | F106: 187976 | G106: 65 | H106: 203356/ | I106: 9 | J106: 2020-03-05 | K106: SI | L106: -5896.41 | M106: Grazing | P106: CREDITED IN ERROR | Q106: CREDITED IN ERROR | R106: GRAHAM WILLIAM JOSHUA & KAYE R | S106: GRAHAM WILLIAM JOSHUA & KAYE R | T106: GRAHAM WILLIAM JOSHUA & KAYE R | U106: 0 | V106: 0 | W106: 0 | X106: 5896.41 | Y106: done | Z106: 2020-04-14
A107: 70 10 10 1340 | B107: Reportable Council-ctrl Orgnis | C107: Whakatane Airport | D107: Whakatane Airport | E107: Rentals and Leases | F107: 187976 | G107: 66 | H107: 203357/ | I107: 9 | J107: 2020-03-05 | K107: SI | L107: -5896.41 | M107: Grazing | O107: Set off with cr note-discussed with Tania 23/07/2020, duplicate invoice raised and it set off with the credit notes above | P107: CREDITED IN ERROR - 201950 | Q107: CREDITED IN ERROR - 201950 | R107: GRAHAM WILLIAM JOSHUA & KAYE R | S107: GRAHAM WILLIAM JOSHUA & KAYE R | T107: GRAHAM WILLIAM JOSHUA & KAYE R | U107: 0 | V107: 0 | W107: 0 | X107: 5896.41 | Y107: done | Z107: 2020-04-14
A108: 70 10 10 1340 | B108: Reportable Council-ctrl Orgnis | C108: Whakatane Airport | D108: Whakatane Airport | E108: Rentals and Leases | F108: 187976 | G108: 67 | H108: 203358/ | I108: 9 | J108: 2020-03-05 | K108: SI | L108: -5896.41 | M108: Grazing | O108: Set off with cr note-discussed with Tania 23/07/2020, duplicate invoice raised and it set off with the credit notes above | P108: CREDITED IN ERROR 201952 | Q108: CREDITED IN ERROR 201952 | R108: GRAHAM WILLIAM JOSHUA & KAYE R | S108: GRAHAM WILLIAM JOSHUA & KAYE R | T108: GRAHAM WILLIAM JOSHUA & KAYE R | U108: 0 | V108: 0 | W108: 0 | X108: 5896.41 | Y108: done | Z108: not paid | AA108: changes made
A109: 70 10 10 1340 | B109: Reportable Council-ctrl Orgnis | C109: Whakatane Airport | D109: Whakatane Airport | E109: Rentals and Leases | F109: 190304 | G109: 1 | H109: 203359/ | I109: 12 | J109: 2020-03-05 | K109: SI | L109: -1179.28 | M109: Grazing | P109: CREDITED GST DIFFERENCE IN ERROR 201970 | Q109: CREDITED GST DIFFERENCE IN ERROR 201970 | R109: GRAHAM WILLIAM JOSHUA & KAYE R | S109: HOHEPA, LUXMIE | T109: HOHEPA, LUXMIE | U109: 0 | V109: 0 | W109: 0 | X109: 1179.28 | Y109: done | Z109: not paid | AA109: changes made
A110: 70 10 10 1340 | B110: Reportable Council-ctrl Orgnis | C110: Whakatane Airport | D110: Whakatane Airport | E110: Rentals and Leases | F110: 187976 | G110: 82 | H110: 203588/ | I110: 9 | J110: 2020-03-11 | K110: SI | L110: -5192.28 | M110: Grazing | P110: (Was 144) 1.12.19 - 31.05.20 | Q110: WHAKATANE AIRPORT GRAZING LEASE FOR 118 AERODROME ROAD | R110: GRAHAM WILLIAM JOSHUA & KAYE R | S110: GRAHAM WILLIAM JOSHUA & KAYE R | T110: GRAHAM WILLIAM JOSHUA & KAYE R | U110: 0 | V110: 0 | W110: 0 | X110: 5192.28 | Y110: done | Z110: not paid | AA110: changes made
A111: 70 10 10 1300 | B111: Reportable Council-ctrl Orgnis | C111: Whakatane Airport | D111: Whakatane Airport | E111: Landing Fees | F111: 188514 | G111: 10 | H111: 203675/ | I111: 9 | J111: 2020-03-12 | K111: SI | L111: -1380 | M111: Landing Fees | P111: as per the Licence to Occupy Agreement for the period 1 July 2019 to 30 June 2020 | Q111: ADVERTISING FOR WHITE ISLAND TOURS AT WHAKATANE AIRPORT | R111: WHITE ISLAND TOURS LIMITED (1609547) | S111: WHITE ISLAND TOURS LIMITED (1609547) | T111: WHITE ISLAND TOURS LIMITED (1609547) | U111: 0 | V111: 0 | W111: =-L111 -> 1380 | X111: 1380 | Y111: done | Z111: 2020-06-23 | AA111: 533.28 10jul20 | AB111: changes made
A112: 70 10 10 1340 | B112: Reportable Council-ctrl Orgnis | C112: Whakatane Airport | D112: Whakatane Airport | E112: Rentals and Leases | F112: 188354 | G112: 1 | H112: 203680/ | I112: 9 | J112: 2020-03-12 | K112: SI | L112: 5896.41 | M112: Grazing | O112: cr note | R112: GRAHAM WILLIAM JOSHUA & KAYE R | S112: GRAHAM WILLIAM JOSHUA & KAYE R | T112: GRAHAM WILLIAM JOSHUA & KAYE R | U112: 0 | V112: 0 | W112: 0 | X112: -5896.41 | Y112: done | Z112: 2020-03-12 | AA112: cr note
A113: 70 10 10 1340 | B113: Reportable Council-ctrl Orgnis | C113: Whakatane Airport | D113: Whakatane Airport | E113: Rentals and Leases | F113: 189239 | G113: 15 | H113: 204443/ | I113: 10 | J113: 2020-04-01 | K113: SI | L113: -6650 | M113: Grazing | P113: 1 April 2020 to 30 September 2020 | Q113: 142 C00 AERODROME RD - WHK AIRPORT GRAZING LEASE | R113: GRAHAM WILLIAM JOSHUA & KAYE R | S113: GRAHAM WILLIAM JOSHUA & KAYE R | T113: GRAHAM WILLIAM JOSHUA & KAYE R | U113: =+ROUND(3/6,2) -> 0.5 | V113: 3325 | W113: 0 | X113: =-L113-V113 -> 3325 | Y113: done | Z113: 2020-06-23
A114: 70 10 10 1340 | B114: Reportable Council-ctrl Orgnis | C114: Whakatane Airport | D114: Whakatane Airport | E114: Rentals and Leases | F114: 189239 | G114: 19 | H114: 204447/ | I114: 10 | J114: 2020-04-01 | K114: SI | L114: -250 | M114: Commercial | P114: Eastbay Aviation Limited (Graeme Lee & Assoc). 1-30 April 2020 | Q114: 216 000 AERODROME RD | R114: EAST BAY AVIATION LTD | S114: EAST BAY AVIATION LTD | T114: EAST BAY AVIATION LTD | U114: 0 | V114: 0 | W114: 0 | X114: =+-L114 -> 250 | Y114: done | Z114: 2020-06-04
A115: 70 10 10 1340 | B115: Reportable Council-ctrl Orgnis | C115: Whakatane Airport | D115: Whakatane Airport | E115: Rentals and Leases | F115: 189239 | G115: 20 | H115: 204448/ | I115: 10 | J115: 2020-04-01 | K115: SI | L115: -576 | M115: Commercial | P115: 1-31 May 2020 | Q115: 0144 000 AERODROME RD - FRONTIER HELICOPTERS | R115: FRONTIER BUILDINGS LIMITED | S115: FRONTIER BUILDINGS LIMITED | T115: FRONTIER BUILDINGS LIMITED | U115: 0 | V115: 0 | W115: 0 | X115: =+-L115 -> 576 | Y115: done | Z115: 2020-07-01 | AA115: not paid | AB115: changes made
A116: 70 10 10 1340 | B116: Reportable Council-ctrl Orgnis | C116: Whakatane Airport | D116: Whakatane Airport | E116: Rentals and Leases | F116: 190462 | G116: 27 | H116: 205952/ | I116: 11 | J116: 2020-05-01 | K116: SI | L116: -250 | M116: Commercial | P116: May | Q116: 0216 000 AERODROME RD - EASTBAY AVIATION LIMITED (GRAEME LEE & ASSOC). | R116: EAST BAY AVIATION LTD | S116: EAST BAY AVIATION LTD | T116: EAST BAY AVIATION LTD | U116: 0 | V116: 0 | W116: 0 | X116: =+-L116 -> 250 | Y116: done | Z116: 2020-07-02 | AA116: not paid | AB116: changes made
A117: 70 10 10 1340 | B117: Reportable Council-ctrl Orgnis | C117: Whakatane Airport | D117: Whakatane Airport | E117: Rentals and Leases | F117: 190462 | G117: 28 | H117: 205953/ | I117: 11 | J117: 2020-05-01 | K117: SI | L117: -576 | M117: Commercial | P117: May | Q117: 0144 000 AERODROME RD - FRONTIER HELICOPTERS. | R117: FRONTIER BUILDINGS LIMITED | S117: FRONTIER BUILDINGS LIMITED | T117: FRONTIER BUILDINGS LIMITED | U117: 0 | V117: 0 | W117: 0 | X117: =+-L117 -> 576 | Y117: done | Z117: 2020-07-02 | AA117: not paid | AB117: changes made
A118: 70 10 10 1340 | B118: Reportable Council-ctrl Orgnis | C118: Whakatane Airport | D118: Whakatane Airport | E118: Rentals and Leases | F118: 190599 | G118: 55 | H118: 206363/ | I118: 12 | J118: 2020-06-01 | K118: SI | L118: -2432.25 | M118: Grazing | P118: 01.06.20 - 30.11.20 | Q118: LEASEHOLD LAND 142A AERODROME RD | R118: FOX, JAMES SMITH | S118: FOX, JAMES SMITH | T118: FOX, JAMES SMITH | U118: =+ROUND(5/6,2) -> 0.83 | V118: 2018.77 | X118: =-L118-V118 -> 413.48 | Y118: done | Z118: 2020-07-22 | AA118: not paid | AB118: changes made
A119: 70 10 10 1340 | B119: Reportable Council-ctrl Orgnis | C119: Whakatane Airport | D119: Whakatane Airport | E119: Rentals and Leases | F119: 193107 | G119: 56 | H119: 206364/ | I119: 12 | J119: 2020-06-01 | K119: SI | L119: -2367.39 | M119: Grazing | P119: 01.06.20 - 30.11.20 | Q119: WHK AIRPORT GRAZING LEASE FOR 142B AERODROME ROAD - 01.06.20 - 30.11.20 | R119: MARTIN, PETER DAVID HEDLEY | S119: MARTIN, PETER DAVID HEDLEY | T119: MARTIN, PETER DAVID HEDLEY | U119: 0.83 | V119: 1964.93 | W119: =+-L119 -> 2367.39 | X119: =+-L119-V119 -> 402.46 | Z119: 2020-07-22 | AA119: not paid | AB119: changes made
A120: 70 10 10 1340 | B120: Reportable Council-ctrl Orgnis | C120: Whakatane Airport | D120: Whakatane Airport | E120: Rentals and Leases | F120: 190599 | G120: 57 | H120: 206365/ | I120: 12 | J120: 2020-06-01 | K120: SI | L120: -1299.6 | M120: Commercial | P120: 01.06.20 - 30.11.20 | Q120: EASTBAY AVIATION LAND LEASE FOR 226 AERODROME ROAD - 01.06.20 - 30.11.20 | R120: WALKER, GEORGE | S120: WALKER, GEORGE | T120: WALKER, GEORGE | U120: 0.83 | V120: 1078.67 | W120: 0 | X120: =-L120-V120 -> 220.93 | Y120: done | Z120: 2020-07-07 | AA120: not paid | AB120: changes made
A121: 70 10 10 1340 | B121: Reportable Council-ctrl Orgnis | C121: Whakatane Airport | D121: Whakatane Airport | E121: Rentals and Leases | F121: 190599 | G121: 58 | H121: 206366/ | I121: 12 | J121: 2020-06-01 | K121: SI | L121: -4711.38 | M121: Grazing | P121: 01.06.20 - 30.11.20 | Q121: WHK AIRPORT GRAZING LEASE FOR 92 AERODROME ROAD - | R121: NOORD, HARMINA NIP | S121: NOORD, HARMINA NIP | T121: NOORD, HARMINA NIP | U121: 0.83 | V121: 3910.45 | W121: 0 | X121: 800.93 | Z121: 2020-07-20 | AA121: not paid | AB121: changes made
A122: 70 10 10 1340 | B122: Reportable Council-ctrl Orgnis | C122: Whakatane Airport | D122: Whakatane Airport | E122: Rentals and Leases | F122: 190599 | G122: 59 | H122: 206367/ | I122: 12 | J122: 2020-06-01 | K122: SI | L122: -7329.18 | M122: Grazing | P122: 01.06.20 - 30.11.20 | Q122: WHK AIRPORT GRAZING LEASE F 142F AERODROME ROAD - | R122: POWER, BRIAN PHILIP | S122: POWER, BRIAN PHILIP | T122: POWER, BRIAN PHILIP | U122: 0.83 | V122: 6083.22 | W122: 0 | X122: 1245.96 | Z122: 2020-07-20 | AA122: not paid | AB122: changes made
A123: 70 10 10 1340 | B123: Reportable Council-ctrl Orgnis | C123: Whakatane Airport | D123: Whakatane Airport | E123: Rentals and Leases | F123: 190599 | G123: 60 | H123: 206368/ | I123: 12 | J123: 2020-06-01 | K123: SI | L123: -1073.27 | M123: Grazing | P123: 01.06.20 - 30.11.20 | Q123: WHK AIRPORT GRAZING LEASE FOR 142G AERODROME ROAD - | R123: ANGLE PARK LIMITED | S123: ANGLE PARK LIMITED | T123: ANGLE PARK LIMITED | U123: 0.83 | V123: 890.81 | W123: =+-L123 -> 1073.27 | X123: 182.46 | Y123: done | Z123: not paid | AA123: not paid | AB123: changes made
A124: 70 10 10 1340 | B124: Reportable Council-ctrl Orgnis | C124: Whakatane Airport | D124: Whakatane Airport | E124: Rentals and Leases | F124: 190599 | G124: 61 | H124: 206369/ | I124: 12 | J124: 2020-06-01 | K124: SI | L124: -3525.63 | M124: Grazing | P124: 01.06.20 - 30.11.20 | Q124: WHK AIRPORT GRAZING LEASE FOR 142D AERODROME ROAD - | R124: ANGLE PARK LIMITED | S124: ANGLE PARK LIMITED | T124: ANGLE PARK LIMITED | U124: 0.83 | V124: 2926.27 | W124: =-L124 -> 3525.63 | X124: 599.36 | Y124: done | Z124: not paid
A125: 70 10 10 1340 | B125: Reportable Council-ctrl Orgnis | C125: Whakatane Airport | D125: Whakatane Airport | E125: Rentals and Leases | F125: 190599 | G125: 62 | H125: 206370/ | I125: 12 | J125: 2020-06-01 | K125: SI | L125: -3259.22 | M125: Grazing | P125: 01.06.20 - 30.11.20 | Q125: WHK AIRPORT GRAZING LEASE FOR 142E AERODROME ROAD - | R125: VAN DEN TOP, ESTATE OF GERRIT | S125: VAN DEN TOP, ESTATE OF GERRIT | T125: VAN DEN TOP, ESTATE OF GERRIT | U125: 0.83 | V125: 2705.15 | W125: 0 | X125: 554.07 | Y125: done | Z125: 2020-07-20 | AA125: not paid | AB125: changes made
A126: 70 10 10 1340 | B126: Reportable Council-ctrl Orgnis | C126: Whakatane Airport | D126: Whakatane Airport | E126: Rentals and Leases | F126: 190599 | G126: 64 | H126: 206372/ | I126: 12 | J126: 2020-06-01 | K126: SI | L126: -5192.28 | M126: Grazing | P126: 1.06.20 - 30.11.20 | Q126: WHAKATANE AIRPORT GRAZING LEASE FOR 118 AERODROME ROAD | R126: GRAHAM WILLIAM JOSHUA & KAYE R | S126: GRAHAM WILLIAM JOSHUA & KAYE R | T126: GRAHAM WILLIAM JOSHUA & KAYE R | U126: 0.83 | V126: 4309.59 | W126: 0 | X126: 882.69 | Y126: done | AA126: not paid | AB126: changes made
A127: 70 10 10 1340 | B127: Reportable Council-ctrl Orgnis | C127: Whakatane Airport | D127: Whakatane Airport | E127: Rentals and Leases | F127: 190599 | G127: 67 | H127: 206375/ | I127: 12 | J127: 2020-06-01 | K127: SI | L127: -1422 | M127: landing fees | P127: 01.06.20 - 30.11.20 | Q127: LAND LEASE FOR 224 AERODROME ROAD - | R127: SCHULTE, JACK | S127: SCHULTE, JACK | T127: SCHULTE, JACK | U127: 0.83 | V127: 1180.26 | W127: =+-L127 -> 1422 | X127: 241.74 | Y127: done | AA127: not paid
A128: 70 10 10 1340 | B128: Reportable Council-ctrl Orgnis | C128: Whakatane Airport | D128: Whakatane Airport | E128: Rentals and Leases | F128: 190599 | G128: 69 | H128: 206377/ | I128: 12 | J128: 2020-06-01 | K128: SI | L128: -250 | M128: Commercial | P128: June | Q128: 0216 000 AERODROME RD - EASTBAY AVIATION LIMITED (GRAEME LEE & ASSOC). | R128: EAST BAY AVIATION LTD | S128: EAST BAY AVIATION LTD | T128: EAST BAY AVIATION LTD | U128: 0 | V128: 0 | W128: 250 | X128: =+-L128 -> 250 | Y128: done | AA128: not paid
A129: 70 10 10 1340 | B129: Reportable Council-ctrl Orgnis | C129: Whakatane Airport | D129: Whakatane Airport | E129: Rentals and Leases | F129: 190599 | G129: 70 | H129: 206378/ | I129: 12 | J129: 2020-06-01 | K129: SI | L129: -576 | M129: Commercial | P129: June | Q129: 0144 000 AERODROME RD - FRONTIER HELICOPTERS | R129: FRONTIER BUILDINGS LIMITED | S129: FRONTIER BUILDINGS LIMITED | T129: FRONTIER BUILDINGS LIMITED | U129: 0 | V129: =-ROUND(L129*U129,2) -> 0 | W129: =-L129 -> 576 | X129: =+-L129 -> 576 | Y129: done | AA129: not paid
A130: 70 10 10 1340 | B130: Reportable Council-ctrl Orgnis | C130: Whakatane Airport | D130: Whakatane Airport | E130: Rentals and Leases | F130: 190599 | G130: 72 | H130: 206380/ | I130: 12 | J130: 2020-06-01 | K130: SI | L130: -1572.1 | M130: Commercial | P130: 01.06.20 - 30.11.20 | Q130: LAND LEASE FOR 228 AERODROME ROAD - | R130: WHAKATANE HANGAR PARTNERSHIP | S130: WHAKATANE HANGAR PARTNERSHIP | T130: WHAKATANE HANGAR PARTNERSHIP | U130: =+ROUND(5/6,2) -> 0.83 | V130: =-ROUND(L130*U130,2) -> 1304.84 | W130: 0 | X130: =-L130-V130 -> 267.26 | Z130: 2020-06-29
A131: 70 10 14 1340 | B131: Reportable Council-ctrl Orgnis | C131: Whakatane Airport | D131: Airport Buildings | E131: Rentals and Leases | F131: 190599 | G131: 71 | H131: 206379/ | I131: 12 | J131: 2020-06-01 | K131: SI | L131: -586 | M131: Building | P131: 01.06.20 - 30.11.20 | Q131: BUILDING RENTAL FOR 216 002 AERODROME ROAD (AIRPORT CONTROL ROOM) - | R131: PAYNE, JOSHUA NATHAN | S131: PAYNE, JOSHUA NATHAN | T131: PAYNE, JOSHUA NATHAN | U131: =+ROUND(5/6,2) -> 0.83 | V131: =-ROUND(L131*U131,2) -> 486.38 | W131: 0 | X131: =-L131-V131 -> 99.62 | Z131: 2020-08-04 | AA131: not paid | AB131: changes made
L132: =SUM(L2:L131) -> -205883.67 | V132: =SUM(V2:V131) -> 33984.095 | W132: =SUM(W2:W131) -> 20741.31 | X132: =SUM(X2:X131) -> 171899.575
L133: =+L132-#REF! -> 
C135: Expense recoveries | D135: =+[2]GLTransactions!L25+[2]GLTransactions!L26+[2]GLTransactions!L27+[2]GLTransactions!L115+[2]GLTransactions!L116+[2]GLTransactions!L117+[2]GLTransactions!L118 -> -4384.08
C136: Total as on 30th June 2020 | D136: =+[2]GLTransactions!L139 -> -210267.75
C137: Difference: | D137: =+D136-L132 -> -4384.08
R140: Accrued income 2019/20 Airport | S140: FRONTIER BUILDINGS LIMITED | T140: =576+576 -> 1152
R141: Accrued income 2019/20 Airport | S141: AIR BP | T141: 112.5
R142: Accrued income 2019/20 Airport | S142: AIR CHATHAM'S LTD | T142: =2157.97+5818.43+1142.22+7010.13+1900.91+5125.36 -> 23155.02
I143: as per MIBI | R143: Accrued income 2019/20 Airport | S143: FOX, JAMES SMITH | T143: 2432.25
R144: Accrued income 2019/20 Airport | S144: GRAHAM WILLIAM JOSHUA & KAYE R | T144: 5896.41
G145: =+L132+213286 -> 7402.33 | H145: =+G145+D135 -> 3018.25 | R145: Accrued income 2019/20 Airport | S145: MARTIN, PETER DAVID HEDLEY | T145: 2367.39
R146: Accrued income 2019/20 Airport | S146: ANGLE PARK LIMITED | T146: =1073.27+3525.63 -> 4598.9
R147: Accrued income 2019/20 Airport | S147: SCHULTE, JACK | T147: 1422
R148: Accrued income 2019/20 Airport | S148: EAST BAY AVIATION LTD | T148: 250
T149: =SUM(T140:T148) -> 41386.47 | U149: =CONCATENATE(R149," ",S149) -> 
A152: Expense recoveries/Sundry Income
A154: 70 10 10 1400 | B154: Reportable Council-ctrl Orgnis | C154: Whakatane Airport | D154: Whakatane Airport | E154: Expense Recoveries | F154: 188514 | G154: 11 | H154: 203676/ | I154: 9 | J154: 2020-03-12 | K154: SI | L154: 1380 | M154: Sundry income | O154: EAST CENTRAL PROPERTIES LTD
A155: 70 10 10 1400 | B155: Reportable Council-ctrl Orgnis | C155: Whakatane Airport | D155: Whakatane Airport | E155: Expense Recoveries | F155: 188514 | G155: 12 | H155: 203677/ | I155: 9 | J155: 2020-03-12 | K155: SI | L155: 600 | M155: Sundry income | O155: RAD CAR HIRE RENTALS
A156: 70 10 10 1400 | B156: Reportable Council-ctrl Orgnis | C156: Whakatane Airport | D156: Whakatane Airport | E156: Expense Recoveries | F156: 188514 | G156: 13 | H156: 203678/ | I156: 9 | J156: 2020-03-12 | K156: SI | L156: 600 | M156: Sundry income | O156: MCGLASHENS RENTAL SERVICES LIMITED
A157: 70 10 10 1400 | B157: Reportable Council-ctrl Orgnis | C157: Whakatane Airport | D157: Whakatane Airport | E157: Expense Recoveries | F157: 188514 | G157: 14 | H157: 203679/ | I157: 9 | J157: 2020-03-12 | K157: SI | L157: 1380 | M157: Sundry income | O157: ETB REALTY LIMITED HARCOURTS
A158: 70 10 10 1400 | B158: Reportable Council-ctrl Orgnis | C158: Whakatane Airport | D158: Whakatane Airport | E158: Expense Recoveries | F158: 176124 | G158: 1 | H158: 195002/ | I158: 1 | J158: 2019-07-12 | K158: SI | L158: 316.08 | M158: Sundry income | O158: ANGLE PARK LIMITED
A159: 70 10 10 1400 | B159: Reportable Council-ctrl Orgnis | C159: Whakatane Airport | D159: Whakatane Airport | E159: Expense Recoveries | F159: 177011 | G159: 60 | H159: 195034/ | I159: 1 | J159: 2019-07-12 | K159: SI | L159: 25.65 | M159: Sundry income | O159: ANGLE PARK LIMITED
A160: 70 10 10 1400 | B160: Reportable Council-ctrl Orgnis | C160: Whakatane Airport | D160: Whakatane Airport | E160: Expense Recoveries | F160: 177011 | G160: 61 | H160: 195040/ | I160: 1 | J160: 2019-07-12 | K160: SI | L160: 82.35 | M160: Sundry income | O160: GRAHAM WILLIAM JOSHUA & KAYE R
L161: =SUM(L154:L160) -> 4384.08

Sheet pivot old (hidden)
A3: Row Labels | B3: Sum of Income in Advance | C3: Sum of Receivableat 30/06/2020 | D3: Sum of Income to 30 June
A4: Building | B4: 486.38 | C4: 5201.1 | D4: 14309.35
A5: Commercial | B5: 4183.265 | C5: 1514.5 | D5: 33358.855
A6: Grazing | B6: 28134.19 | C6: 15294.95 | D6: 70470.67
A7: landing fees | B7: 1180.26 | C7: 19375.92 | D7: 53760.7
A8: (blank) | B8: 0 | C8: 0 | D8: 0
A9: Grand Total | B9: 33984.095 | C9: 41386.47 | D9: 171899.575
B13: Receivables
B14: AIR CHATHAMS | C14: =+GETPIVOTDATA("Receivableat 30/06/2020",$A$19,"CreditorDebtorName","AIR CHATHAM'S LTD") -> 7026.27
B15: Others | C15: =+GETPIVOTDATA("Sum of Receivableat 30/06/2020",$A$3)-C14 -> 34360.2
D18: Building | E18: 14309.35
A19: Row Labels | B19: Sum of Receivableat 30/06/2020 | D19: Commercial | E19: 33358.855
B20: 0 | D20: Grazing | E20: 70470.67
A21: AIR BP | B21: 112.5 | D21: landing fees | E21: 53760.7
A22: AIR CHATHAM'S LTD | B22: 7026.27 | D22: (blank) | E22: 0
A23: AIRFUELS.COM LIMITED | B23: 0
A24: ANGLE PARK LIMITED | B24: 4598.9
A25: BP OIL NEW ZEALAND | B25: 0
A26: BP OIL NEW ZEALAND LIMITED | B26: 0
A27: D & B RUTLEDGE LIMITED | B27: 0
A28: EAST BAY AVIATION LTD | B28: 250
A29: FOX, JAMES SMITH | B29: 2432.25
A30: FRONTIER BUILDINGS LIMITED | B30: 1152
A31: GRAHAM WILLIAM JOSHUA & KAYE R | B31: 5896.41
A32: HOHEPA, LUXMIE | B32: 0
A33: MARTIN, PETER DAVID HEDLEY | B33: 2367.39
A34: Meterological Service of New Zealand | B34: 0
A35: NOORD, HARMINA NIP | B35: 0
A36: PAYNE, JOSHUA NATHAN | B36: 0
A37: POWER, BRIAN PHILIP | B37: 0
A38: ROBSON, RICHARD PETER | B38: 0
A39: SCHULTE, JACK | B39: 1422
A40: SUPERAIR LIMITED | B40: 0
A41: VAN DEN TOP, ESTATE OF GERRIT | B41: 0
A42: WALKER, GEORGE | B42: 0
A43: WHAKATANE HANGAR PARTNERSHIP | B43: 0
A44: WHITE ISLAND TOURS LIMITED (1609547) | B44: 0
A45: Grand Total | B45: 25257.72

Sheet Notes 10,11,12,13,14 (hidden)
A1: Note 10 - Capital Commitments
A2: Whakatāne Airport has no capital commitments at 30 June 2019 (2018- $774K)
A3: Note 11 - Contingincies
A4: Whakatāne Airport has no contingent assets or liabilities as at 30 June 2019 (2018 : nil)
A5: Note 12 - Events After Balance Sheet Date
A6: There were no significant events after the balance date.
A7: Note 13 - Financial Instruments
A8: Whakatane Airport has a series of policies to manage the risks associated with financial instruments.
A9: Whakatane Airport is risk averse and seeks to minimise exposure from its treasury activities.
A10: Whakatane Airport uses Council approved Liability Management and Investment policies.
A11: These policies do not allow any transactions to be entered into that are speculative in nature.
A12: Price Risk
A13: Price risk is the risk that the value of a financial instrument will fluctuate as a result of changes in market
A14: prices. Whakatane Airport does not hold and is therefore not exposed to equity securities price risk
A15: on its investments.
A16: Currency Risk
A17: Currency risk is the risk that the value of a financial instrument will fluctuate due to changes in foreign
A18: exchange rates. Whakatane Airport is not exposed to currency risk, as it does not enter into foreign
A19: currency transactions.
A20: Interest Rate Risk
A21: There is no interest rate risk. The Airport deposits funds directly into Whakatane District Council bank account.
A22: Credit Risk
A23: Whakatane Airport is exposed to credit risk in relation to its current account
A24: balance with Whakatane Disrict Council and trade debtors, thus exposure is managed under normal terms of trade
A25: Fair Values
A26: Financial instruments in the Balance Sheet are shown at carrying amounts which are equivalent to their
A27: fair values.
A28: Note 14 - Statement of Intent
A29: The Airport is a Council Controlled Organisation. For the current reporting period the Airport complied with
A30: Section 64 of the Local Government Act 2002, (the Act) which requires the Airport to prepare a Statement
A31: of Intent that complies with Clause 9 of Schedule 8 of the Act.

Sheet 2019 Revenue Analysis (hidden)
A1: GL Transaction Report | N1: Per Person/Flight | O1: 4 | P1: 84% Landing Fee | Q1: 16% Building Lease
F2: Data | N2: $ (excl GST) | O2: Month | P2: Pax Equivalenet | U2: 25952.56 | V2: IIA reposted 2017
A3: Whakatane District Council | E3: Type | F3: Sum of Amount | G3: Sum of Income in Advance $$ | H3: Sum of 2019 Income | L3: Current YE Receivables | M3: =-SUM(R19:R179) -> 50108.98 | O3: July | P3: =-N3/$O$1 -> 0
A4: Reported By: | B4: EMILYF | E4: Building | F4: -17672.35 | G4: -488.3333333 | H4: -17184.01667 | L4: Air Chathams | M4: =-(R146+R147) -> 7352.61 | O4: Aug | P4: =-N4/$O$1 -> 0
E5: Commercial | F5: -38742.31 | G5: -5261.611111 | H5: -33480.69889 | L5: Other | M5: =M3-M4 -> 42756.37 | O5: Sep | P5: 0
E6: Grazing | F6: -99141.74 | G6: -29617.34167 | H6: -69524.39833 | O6: Oct | P6: 0
E7: Landing Fees | F7: -84291.36 | H7: -84291.36 | O7: Nov | P7: 0
A8: Report Arguments | E8: Sundry | F8: -9282.61 | H8: -9282.61 | O8: Dec | P8: 0
A9: Financial Year | B9: 2019 | E9: Grand Total | F9: -249130.37 | G9: -35367.28611 | H9: -213763.0839 | O9: Jan | P9: 0
A10: Period Start | B10: 1 | I10: =GETPIVOTDATA("Sum of Amount",$E$2)-GETPIVOTDATA("Sum of Income in Advance $$",$E$2) -> -213763.0839 | K10: =184648.17-185885.67 -> -1237.5 | O10: Feb | P10: 0
A11: Period End | B11: 12 | O11: Mar | P11: 0
F12: 272991.98 | G12: SI 191123 posted directly to Income in Advance | O12: Apr | P12: 0
F13: =F12+GETPIVOTDATA("Sum of Amount",$E$2) -> 23861.61 | G13: IIA FS Journal Excl | O13: May | P13: 0
F14: 1237.5 | G14: Met Service in IIA | O14: Jun | P14: =-N14/$O$1 -> 0
N15: =SUBTOTAL(9,N3:N14) -> 0 | P15: =SUBTOTAL(9,P3:P14) -> 0
A18: GL Account | B18: PostCode Description | C18: Batch | D18: Line No | E18: Ref | F18: Period | G18: Date | H18: Code | I18: Amount | J18: Type | K18: Rate | L18: Dates | M18: SubJob | N18: Analysis | O18: Narration | P18: Months in advance | Q18: Income in Advance $$ | R18: Receiveable at 30/06/19 | S18: 2019 Income
A19: 70 10 10 1300 | B19: Landing Fees | C19: 161815 | D19: 118 | E19: 183517/ | F19: 1 | G19: 2018-07-31 | H19: SI | I19: -6308.03 | J19: Landing Fees | L19: 2018-07-01 | O19: AIR CHATHAM'S LTD | R19: 0 | S19: =I19-Q19 -> -6308.03
A20: 70 10 10 1300 | B20: Landing Fees | C20: 163410 | D20: 4 | E20: 184886/ | F20: 2 | G20: 2018-08-31 | H20: SI | I20: -6585.6 | J20: Landing Fees | L20: 2018-08-01 | O20: AIR CHATHAM'S LTD | R20: 0 | S20: =I20-Q20 -> -6585.6
A21: 70 10 10 1300 | B21: Landing Fees | C21: 164451 | D21: 9 | E21: 185787/ | F21: 3 | G21: 2018-09-30 | H21: SI | I21: -7287.84 | J21: Landing Fees | L21: 2018-09-01 | O21: AIR CHATHAM'S LTD | R21: 0 | S21: -7287.84
A22: 70 10 10 1300 | B22: Landing Fees | C22: 167971 | D22: 4 | E22: 187136/ | F22: 4 | G22: 2018-10-31 | H22: SI | I22: -7775.04 | J22: Landing Fees | L22: 2018-10-01 | O22: AIR CHATHAM'S LTD | R22: 0 | S22: -7775.04
A23: 70 10 10 1300 | B23: Landing Fees | C23: 168888 | D23: 129 | E23: 187939/ | F23: 5 | G23: 2018-11-30 | H23: SI | I23: -7314.72 | J23: Landing Fees | L23: 2018-11-01 | O23: AIR CHATHAM'S LTD | R23: 0 | S23: -7314.72
A24: 70 10 10 1340 | B24: Rentals and Leases | C24: 160074 | D24: 1 | E24: J0570 | F24: 1 | G24: 2018-06-30 | H24: JNL | I24: -270.42 | J24: Commercial | L24: 01/02/18-31/07/18 | O24: 176637/-ROBSON, RICHARD PETER- | R24: 0 | S24: -270.42
A25: 70 10 10 1340 | B25: Rentals and Leases | C25: 160074 | D25: 2 | E25: J0570 | F25: 1 | G25: 2018-06-30 | H25: JNL | I25: -2989.23 | J25: Grazing | L25: 20/04/18-19/09/18 | N25: Lease Terminated | O25: 177330/-MANUKA BIOACTIVES-20/0 | R25: 0 | S25: -2989.23
A26: 70 10 10 1340 | B26: Rentals and Leases | C26: 160074 | D26: 3 | E26: J0570 | F26: 1 | G26: 2018-06-30 | H26: JNL | I26: -2026.88 | J26: Grazing | L26: 01/06/18-30/11/18 | O26: 181813/-FOX, JAMES SMITH-01/06 | R26: =I26 -> -2026.88 | S26: -2026.88
A27: 70 10 10 1340 | B27: Rentals and Leases | C27: 160074 | D27: 4 | E27: J0570 | F27: 1 | G27: 2018-06-30 | H27: JNL | I27: -1972.83 | J27: Grazing | L27: 01/06/18-30/11/18 | O27: 181814/-MARTIN, PETER DAVID HE | R27: 0 | S27: -1972.83
A28: 70 10 10 1340 | B28: Rentals and Leases | C28: 160074 | D28: 5 | E28: J0570 | F28: 1 | G28: 2018-06-30 | H28: JNL | I28: -1083 | J28: Commercial | L28: 01/06/18-30/11/18 | O28: 181815/-WALKER, GEORGE-01/06/1 | R28: 0 | S28: -1083
A29: 70 10 10 1340 | B29: Rentals and Leases | C29: 160074 | D29: 6 | E29: J0570 | F29: 1 | G29: 2018-06-30 | H29: JNL | I29: -3926.15 | J29: Grazing | L29: 01/06/18-30/11/18 | O29: 181816/-NOORD, HARMINA NIP-01/ | R29: 0 | S29: -3926.15
A30: 70 10 10 1340 | B30: Rentals and Leases | C30: 160074 | D30: 7 | E30: J0570 | F30: 1 | G30: 2018-06-30 | H30: JNL | I30: -6107.65 | J30: Grazing | L30: 01/06/18-30/11/18 | O30: 181817/-POWER, BRIAN PHILIP-01 | R30: 0 | S30: -6107.65
A31: 70 10 10 1340 | B31: Rentals and Leases | C31: 160074 | D31: 8 | E31: J0570 | F31: 1 | G31: 2018-06-30 | H31: JNL | I31: -1216.13 | J31: Grazing | L31: 01/06/18-30/11/18 | O31: 181818/-ANGLE PARK LIMITED-01/ | R31: 0 | S31: -1216.13
A32: 70 10 10 1340 | B32: Rentals and Leases | C32: 160074 | D32: 9 | E32: J0570 | F32: 1 | G32: 2018-06-30 | H32: JNL | I32: -2716.02 | J32: Grazing | L32: 01/06/18-30/11/18 | O32: 181820/-VAN DEN TOP, ESTATE OF | R32: 0 | S32: -2716.02
A33: 70 10 10 1340 | B33: Rentals and Leases | C33: 160074 | D33: 10 | E33: J0570 | F33: 1 | G33: 2018-06-30 | H33: JNL | I33: -4913.68 | J33: Grazing | L33: 01/06/18-30/11/18 | N33: 144 Aerodrome Road | O33: 181831/-GRAHAM WILLIAM JOSHUA | R33: 0 | S33: -4913.68
A34: 70 10 10 1340 | B34: Rentals and Leases | C34: 160074 | D34: 11 | E34: J0570 | F34: 1 | G34: 2018-06-30 | H34: JNL | I34: -576 | J34: Commercial | L34: 2018-07-01 | O34: 181842/-FRONTIER BUILDINGS LIM | R34: 0 | S34: -576
A35: 70 10 10 1340 | B35: Rentals and Leases | C35: 160074 | D35: 12 | E35: J0570 | F35: 1 | G35: 2018-06-30 | H35: JNL | I35: -1310.08 | J35: Commercial | L35: 01/06/18-30/11/18 | O35: 181847/-WHAKATANE HANGAR PARTN | R35: 0 | S35: -1310.08
A36: 70 10 10 1340 | B36: Rentals and Leases | C36: 160406 | D36: 6 | E36: 182769/ | F36: 1 | G36: 2018-07-18 | H36: SI | I36: 4982.05 | J36: Grazing | L36: Credit from Lease Termination | N36: Lease Terminated | O36: MANUKA BIOACTIVES | R36: 0 | S36: 4982.05
A37: 70 10 10 1340 | B37: Rentals and Leases | C37: 161232 | D37: 5 | E37: 182770/ | F37: 1 | G37: 2018-07-18 | H37: SI | I37: -3804.97 | J37: Grazing | L37: 02/03/18-09/08/18 | N37: Lease Terminated | O37: MANUKA BIOACTIVES | R37: =I37 -> -3804.97 | S37: -3804.97
A38: 70 10 10 1340 | B38: Rentals and Leases | C38: 161815 | D38: 10 | E38: 183340/ | F38: 1 | G38: 2018-07-01 | H38: SI | I38: -1250 | J38: Commercial | L38: 01/07/18-31/12/18 | O38: SUPERAIR LIMITED | R38: 0 | S38: -1250
A39: 70 10 10 1340 | B39: Rentals and Leases | C39: 161815 | D39: 13 | E39: 183344/ | F39: 1 | G39: 2018-07-01 | H39: SI | I39: -4000 | J39: Commercial | L39: 01/07/18-30/06/19 | O39: BP OIL NEW ZEALAND LIMITED | R39: 0 | S39: -4000
A40: 70 10 10 1340 | B40: Rentals and Leases | C40: 161815 | D40: 15 | E40: 183346/ | F40: 1 | G40: 2018-07-01 | H40: SI | I40: -250 | J40: Commercial | L40: 2018-07-01 | O40: EAST BAY AVIATION LTD | R40: 0 | S40: -250
A41: 70 10 10 1340 | B41: Rentals and Leases | C41: 161815 | D41: 17 | E41: 183348/ | F41: 1 | G41: 2018-07-01 | H41: SI | I41: -576 | J41: Commercial | L41: 2018-08-01 | O41: FRONTIER BUILDINGS LIMITED | R41: 0 | S41: -576
A42: 70 10 10 1340 | B42: Rentals and Leases | C42: 161815 | D42: 119 | E42: 183517/ | F42: 1 | G42: 2018-07-31 | H42: SI | I42: -1201.53 | J42: Building | L42: 2018-07-01 | O42: AIR CHATHAM'S LTD | R42: 0 | S42: -1201.53
A43: 70 10 10 1340 | B43: Rentals and Leases | C43: 163350 | D43: 23 | E43: 184725/ | F43: 2 | G43: 2018-08-01 | H43: SI | I43: -1622.5 | J43: Commercial | L43: 01/08/18-31/01/19 | O43: ROBSON, RICHARD PETER | R43: 0 | S43: -1622.5
A44: 70 10 10 1340 | B44: Rentals and Leases | C44: 163350 | D44: 27 | E44: 184730/ | F44: 2 | G44: 2018-08-01 | H44: SI | I44: -2003.5 | J44: Commercial | L44: 01/08/18-31/01/19 | O44: D & B RUTLEDGE LIMITED | R44: 0 | S44: -2003.5
A45: 70 10 10 1340 | B45: Rentals and Leases | C45: 163350 | D45: 29 | E45: 184732/ | F45: 2 | G45: 2018-08-01 | H45: SI | I45: -250 | J45: Commercial | L45: 2018-08-01 | O45: EAST BAY AVIATION LTD | R45: 0 | S45: -250
A46: 70 10 10 1340 | B46: Rentals and Leases | C46: 163350 | D46: 31 | E46: 184734/ | F46: 2 | G46: 2018-08-01 | H46: SI | I46: -576 | J46: Commercial | L46: 2018-09-01 | O46: FRONTIER BUILDINGS LIMITED | R46: 0 | S46: -576
A47: 70 10 10 1340 | B47: Rentals and Leases | C47: 163410 | D47: 5 | E47: 184886/ | F47: 2 | G47: 2018-08-31 | H47: SI | I47: -1254.4 | J47: Building | L47: 2018-08-01 | O47: AIR CHATHAM'S LTD | R47: 0 | S47: -1254.4
A48: 70 10 10 1340 | B48: Rentals and Leases | C48: 163351 | D48: 10 | E48: 184806/ | F48: 3 | G48: 2018-09-01 | H48: SI | I48: -250 | J48: Commercial | L48: 2018-09-01 | O48: EAST BAY AVIATION LTD | R48: 0 | S48: -250
A49: 70 10 10 1340 | B49: Rentals and Leases | C49: 163351 | D49: 12 | E49: 184808/ | F49: 3 | G49: 2018-09-01 | H49: SI | I49: -576 | J49: Commercial | L49: 2018-10-01 | O49: FRONTIER BUILDINGS LIMITED | R49: 0 | S49: -576
A50: 70 10 10 1340 | B50: Rentals and Leases | C50: 163351 | D50: 19 | E50: 184815/ | F50: 3 | G50: 2018-09-01 | H50: SI | I50: -2517.95 | J50: Grazing | L50: 20/09/18-19/03/19 | N50: Lease Terminated | O50: MANUKA BIOACTIVES | R50: 0 | S50: -2517.95
A51: 70 10 10 1340 | B51: Rentals and Leases | C51: 164451 | D51: 10 | E51: 185787/ | F51: 3 | G51: 2018-09-30 | H51: SI | I51: -1388.16 | J51: Building | L51: 2018-09-01 | O51: AIR CHATHAM'S LTD | R51: 0 | S51: -1388.16
A52: 70 10 10 1340 | B52: Rentals and Leases | C52: 167328 | D52: 124 | E52: 186064/ | F52: 4 | G52: 2018-10-01 | H52: SI | I52: -250 | J52: Commercial | L52: 2018-10-01 | O52: EAST BAY AVIATION LTD | R52: 0 | S52: -250
A53: 70 10 10 1340 | B53: Rentals and Leases | C53: 167328 | D53: 126 | E53: 186066/ | F53: 4 | G53: 2018-10-01 | H53: SI | I53: -576 | J53: Commercial | L53: 2018-11-01 | O53: FRONTIER BUILDINGS LIMITED | R53: 0 | S53: -576
A54: 70 10 10 1340 | B54: Rentals and Leases | C54: 167864 | D54: 53 | E54: J0186 | F54: 4 | G54: 2018-10-31 | H54: JNL | I54: -1237.5 | J54: Commercial | L54: 01/07/18-31/03/19 | N54: METEOROLOGIAL SERVICE OF NEW Z | O54: AIRPORT COMMERCIAL LEASE - Lan | R54: 0 | S54: -1237.5
A55: 70 10 10 1340 | B55: Rentals and Leases | C55: 167864 | D55: 62 | E55: J0186 | F55: 4 | G55: 2018-10-31 | H55: JNL | I55: -1007.18 | J55: Grazing | L55: 01/07/18-19/09/18 | N55: Lease Terminated | O55: SI 177329 - Manuka Bioactives | R55: =I55 -> -1007.18 | S55: -1007.18
A56: 70 10 10 1340 | B56: Rentals and Leases | C56: 167971 | D56: 5 | E56: 187136/ | F56: 4 | G56: 2018-10-31 | H56: SI | I56: -1480.96 | J56: Building | L56: 2018-10-01 | O56: AIR CHATHAM'S LTD | R56: 0 | S56: -1480.96
A57: 70 10 10 1340 | B57: Rentals and Leases | C57: 168319 | D57: 12 | E57: 186834/ | F57: 5 | G57: 2018-11-01 | H57: SI | I57: -250 | J57: Commercial | L57: 2018-11-01 | O57: EAST BAY AVIATION LTD | R57: 0 | S57: -250
A58: 70 10 10 1340 | B58: Rentals and Leases | C58: 168319 | D58: 55 | E58: 187115/ | F58: 5 | G58: 2018-11-01 | H58: SI | I58: -576 | J58: Commercial | L58: 2018-12-01 | O58: FRONTIER BUILDINGS LIMITED | R58: 0 | S58: -576
A59: 70 10 10 1340 | B59: Rentals and Leases | C59: 168319 | D59: 108 | E59: 187619/ | F59: 5 | G59: 2018-11-30 | H59: SI | I59: -1748.13 | J59: Commercial | L59: 01/11/17-31/10/18 | O59: AIRFUELS.COM LIMITED | R59: 0 | S59: -1748.13
A60: 70 10 10 1340 | B60: Rentals and Leases | C60: 168888 | D60: 4 | E60: 187668/ | F60: 5 | G60: 2018-11-30 | H60: SI | I60: -1785.91 | J60: Commercial | L60: 01/11/17-31/10/18 | N60: SUB LEASE AVIATION FUEL FACILITY METER READ | O60: AIRFUELS.COM LIMITED | R60: 0 | S60: -1785.91
A61: 70 10 10 1340 | B61: Rentals and Leases | C61: 168888 | D61: 130 | E61: 187939/ | F61: 5 | G61: 2018-11-30 | H61: SI | I61: -1393.28 | J61: Building | L61: 2018-11-01 | O61: AIR CHATHAM'S LTD | R61: 0 | S61: -1393.28
A62: 70 10 14 1340 | B62: Rentals and Leases | C62: 160074 | D62: 13 | E62: J0570 | F62: 1 | G62: 2018-06-30 | H62: JNL | I62: -488.33 | J62: Building | L62: 01/06/18-30/11/18 | O62: 181844/-PAYNE, JOSHUA NATHAN-0 | R62: 0 | S62: -488.33
A63: 70 10 10 1300 | B63: Landing Fees | C63: 169368 | D63: 24 | E63: 188408/ | F63: 6 | G63: 2018-12-31 | H63: SI | I63: -7348.32 | J63: Landing Fees | L63: 2018-12-01 | O63: AIR CHATHAM'S LTD | R63: 0 | S63: -7348.32
A64: 70 10 10 1340 | B64: Rentals and Leases | C64: 168890 | D64: 2 | E64: 187667/ | F64: 6 | G64: 2018-12-04 | H64: SI | I64: 1748.13 | J64: Commercial | L64: 01/11/17-31/10/18 | O64: AIRFUELS.COM LIMITED | R64: 0 | S64: 1748.13
A65: 70 10 10 1340 | B65: Rentals and Leases | C65: 169153 | D65: 2 | E65: 188035/ | F65: 6 | G65: 2018-12-17 | H65: SI | I65: 2517.95 | J65: Grazing | L65: =L50 -> 20/09/18-19/03/19 | N65: Lease Terminated | O65: MANUKA BIOACTIVES | R65: 0 | S65: 2517.95
A66: 70 10 10 1340 | B66: Rentals and Leases | C66: 169158 | D66: 35 | E66: 188143/ | F66: 6 | G66: 2018-12-01 | H66: SI | I66: -2432.25 | J66: Grazing | L66: 01/12/18-31/05/19 | O66: FOX, JAMES SMITH | R66: 0 | S66: -2432.25
A67: 70 10 10 1340 | B67: Rentals and Leases | C67: 169158 | D67: 36 | E67: 188144/ | F67: 6 | G67: 2018-12-01 | H67: SI | I67: -2367.39 | J67: Grazing | L67: 01/12/18-31/05/19 | O67: MARTIN, PETER DAVID HEDLEY | R67: 0 | S67: -2367.39
A68: 70 10 10 1340 | B68: Rentals and Leases | C68: 169158 | D68: 37 | E68: 188145/ | F68: 6 | G68: 2018-12-01 | H68: SI | I68: -1299.6 | J68: Commercial | L68: 01/12/18-31/05/19 | O68: WALKER, GEORGE | R68: 0 | S68: -1299.6
A69: 70 10 10 1340 | B69: Rentals and Leases | C69: 169158 | D69: 38 | E69: 188146/ | F69: 6 | G69: 2018-12-01 | H69: SI | I69: -4711.38 | J69: Grazing | L69: 01/12/18-31/05/19 | O69: NOORD, HARMINA NIP | R69: 0 | S69: -4711.38
A70: 70 10 10 1340 | B70: Rentals and Leases | C70: 169158 | D70: 39 | E70: 188147/ | F70: 6 | G70: 2018-12-01 | H70: SI | I70: -7329.18 | J70: Grazing | L70: 01/12/18-31/05/19 | O70: POWER, BRIAN PHILIP | R70: 0 | S70: -7329.18
A71: 70 10 10 1340 | B71: Rentals and Leases | C71: 169158 | D71: 40 | E71: 188148/ | F71: 6 | G71: 2018-12-01 | H71: SI | I71: -1459.35 | J71: Grazing | L71: 01/12/18-31/05/19 | O71: ANGLE PARK LIMITED | R71: =I71 -> -1459.35 | S71: -1459.35
A72: 70 10 10 1340 | B72: Rentals and Leases | C72: 169158 | D72: 41 | E72: 188149/ | F72: 6 | G72: 2018-12-01 | H72: SI | I72: -3259.22 | J72: Grazing | L72: 01/12/18-31/05/19 | O72: VAN DEN TOP, ESTATE OF GERRIT | R72: 0 | S72: -3259.22
A73: 70 10 10 1340 | B73: Rentals and Leases | C73: 169158 | D73: 43 | E73: 188151/ | F73: 6 | G73: 2018-12-01 | H73: SI | I73: -5896.41 | J73: Grazing | L73: 01/12/18-31/05/19 | N73: 144 Aerodrome Road | O73: GRAHAM WILLIAM JOSHUA & KAYE R | R73: 0 | S73: -5896.41
A74: 70 10 10 1340 | B74: Rentals and Leases | C74: 169158 | D74: 45 | E74: 188153/ | F74: 6 | G74: 2018-12-01 | H74: SI | I74: -1422 | J74: Commercial | L74: 01/12/18-31/05/19 | O74: SCHULTE, JACK | R74: 0 | S74: -1422
A75: 70 10 10 1340 | B75: Rentals and Leases | C75: 169158 | D75: 47 | E75: 188155/ | F75: 6 | G75: 2018-12-01 | H75: SI | I75: -250 | J75: Commercial | L75: 2018-12-01 | O75: EAST BAY AVIATION LTD | R75: 0 | S75: -250
A76: 70 10 10 1340 | B76: Rentals and Leases | C76: 169158 | D76: 48 | E76: 188156/ | F76: 6 | G76: 2018-12-01 | H76: SI | I76: -576 | J76: Commercial | L76: 2019-01-01 | O76: FRONTIER BUILDINGS LIMITED | R76: 0 | S76: -576
A77: 70 10 10 1340 | B77: Rentals and Leases | C77: 169158 | D77: 51 | E77: 188159/ | F77: 6 | G77: 2018-12-01 | H77: SI | I77: -1572.1 | J77: Commercial | L77: 01/12/18-31/05/19 | O77: WHAKATANE HANGAR PARTNERSHIP | R77: 0 | S77: -1572.1
A78: 70 10 10 1340 | B78: Rentals and Leases | C78: 169368 | D78: 25 | E78: 188408/ | F78: 6 | G78: 2018-12-31 | H78: SI | I78: -1399.68 | J78: Building | L78: 2018-12-01 | O78: AIR CHATHAM'S LTD | R78: 0 | S78: -1399.68
A79: 70 10 14 1340 | B79: Rentals and Leases | C79: 169158 | D79: 49 | E79: 188157/ | F79: 6 | G79: 2018-12-01 | H79: SI | I79: -586 | J79: Building | L79: 01/12/18-31/05/19 | O79: PAYNE, JOSHUA NATHAN | R79: 0 | S79: -586
A80: 70 10 10 1300 | B80: Landing Fees | C80: 170841 | D80: 48 | E80: 189521/ | F80: 7 | G80: 2019-01-31 | H80: SI | I80: -6216 | J80: Landing Fees | L80: 2019-01-01 | O80: AIR CHATHAM'S LTD | R80: 0 | S80: -6216
A81: 70 10 10 1340 | B81: Rentals and Leases | C81: 170228 | D81: 55 | E81: 189049/ | F81: 7 | G81: 2019-01-01 | H81: SI | I81: -1250 | J81: Commercial | L81: 01/01/19-30/06/19 | O81: SUPERAIR LIMITED | R81: 0 | S81: -1250
A82: 70 10 10 1340 | B82: Rentals and Leases | C82: 170228 | D82: 59 | E82: 189053/ | F82: 7 | G82: 2019-01-01 | H82: SI | I82: -250 | J82: Commercial | L82: 2019-01-01 | O82: EAST BAY AVIATION LTD | R82: 0 | S82: -250
A83: 70 10 10 1340 | B83: Rentals and Leases | C83: 170228 | D83: 60 | E83: 189054/ | F83: 7 | G83: 2019-01-01 | H83: SI | I83: -576 | J83: Commercial | L83: 2019-02-01 | O83: FRONTIER BUILDINGS LIMITED | R83: 0 | S83: -576
A84: 70 10 10 1340 | B84: Rentals and Leases | C84: 170841 | D84: 49 | E84: 189521/ | F84: 7 | G84: 2019-01-31 | H84: SI | I84: -1850.64 | J84: Building | L84: 2019-01-01 | O84: AIR CHATHAM'S LTD | R84: 0 | S84: =I84-Q84 -> -1850.64
A85: 70 10 10 1480 | B85: Sundry Income | C85: 169872 | D85: 6 | E85: DCRA0 | F85: 7 | G85: 2019-01-21 | I85: -4200 | J85: Sundry | L85: Prior years | N85: Repayment of AIMS fees overcharged over 21 Months | O85: CASH RECEIPTING | R85: 0 | S85: -4200
A86: 70 10 10 1300 | B86: Landing Fees | C86: 171847 | D86: 124 | E86: 190455/ | F86: 8 | G86: 2019-02-28 | H86: SI | I86: -6306.72 | J86: Landing Fees | L86: 2019-02-01 | O86: AIR CHATHAM'S LTD | R86: 0 | S86: -6306.72
A87: 70 10 10 1340 | B87: Rentals and Leases | C87: 171173 | D87: 301 | E87: 189859/ | F87: 8 | G87: 2019-02-01 | H87: SI | I87: -1622.5 | J87: Commercial | L87: 01/02/19-31/08/19 | O87: ROBSON, RICHARD PETER | P87: =4/9 -> 0.4444444444 | Q87: =P87*I87 -> -721.1111111 | R87: 0 | S87: -901.3888889
A88: 70 10 10 1340 | B88: Rentals and Leases | C88: 171173 | D88: 304 | E88: 189862/ | F88: 8 | G88: 2019-02-01 | H88: SI | I88: -2003.5 | J88: Commercial | L88: 01/02/19-31/07/19 | O88: D & B RUTLEDGE LIMITED | P88: =1/6 -> 0.1666666667 | Q88: =I88*P88 -> -333.9166667 | R88: 0 | S88: -1669.583333
A89: 70 10 10 1340 | B89: Rentals and Leases | C89: 171173 | D89: 306 | E89: 189864/ | F89: 8 | G89: 2019-02-01 | H89: SI | I89: -250 | J89: Commercial | L89: 2019-02-01 | O89: EAST BAY AVIATION LTD | R89: 0 | S89: -250
A90: 70 10 10 1340 | B90: Rentals and Leases | C90: 171173 | D90: 307 | E90: 189865/ | F90: 8 | G90: 2019-02-01 | H90: SI | I90: -576 | J90: Commercial | L90: 2019-03-01 | O90: FRONTIER BUILDINGS LIMITED | R90: 0 | S90: -576
A91: 70 10 10 1340 | B91: Rentals and Leases | C91: 171173 | D91: 322 | E91: 189880/ | F91: 8 | G91: 2019-02-22 | H91: SI | I91: -6650 | J91: Grazing | L91: 01/10/18-31/03/19 | N91: 142D Aerodrome Road | O91: GRAHAM WILLIAM JOSHUA & KAYE R | R91: 0 | S91: -6650
A92: 70 10 10 1340 | B92: Rentals and Leases | C92: 171847 | D92: 125 | E92: 190455/ | F92: 8 | G92: 2019-02-28 | H92: SI | I92: -1201.28 | J92: Building | L92: 2019-02-01 | O92: AIR CHATHAM'S LTD | R92: 0 | S92: -1201.28
A93: 70 10 10 1300 | B93: Landing Fees | C93: 172700 | D93: 1 | E93: 191118/ | F93: 9 | G93: 2019-03-31 | H93: SI | I93: -6459.97 | J93: Landing Fees | L93: 2019-03-01 | O93: AIR CHATHAM'S LTD | R93: 0 | S93: -6459.97
A94: 70 10 10 1340 | B94: Rentals and Leases | C94: 172049 | D94: 18 | E94: 190156/ | F94: 9 | G94: 2019-03-04 | H94: SI | I94: -853.54 | J94: Grazing | L94: 01/10/18-31/12/18 | N94: 142C Aerodrome Road | O94: GRAHAM WILLIAM JOSHUA & KAYE R | R94: 0 | S94: -853.54
A95: 70 10 10 1340 | B95: Rentals and Leases | C95: 172049 | D95: 19 | E95: 190156/ | F95: 9 | G95: 2019-03-04 | H95: SI | I95: -853.54 | J95: Grazing | L95: 01/01/19-31/03/19 | N95: 142C Aerodrome Road | O95: GRAHAM WILLIAM JOSHUA & KAYE R | R95: 0 | S95: -853.54
A96: 70 10 10 1340 | B96: Rentals and Leases | C96: 172558 | D96: 68 | E96: 190971/ | F96: 9 | G96: 2019-03-01 | H96: SI | I96: -250 | J96: Commercial | L96: 2019-03-01 | O96: EAST BAY AVIATION LTD | R96: 0 | S96: -250
A97: 70 10 10 1340 | B97: Rentals and Leases | C97: 172558 | D97: 69 | E97: 190972/ | F97: 9 | G97: 2019-03-01 | H97: SI | I97: -576 | J97: Commercial | L97: 2019-04-01 | O97: FRONTIER BUILDINGS LIMITED | R97: 0 | S97: -576
A98: 70 10 10 1340 | B98: Rentals and Leases | C98: 172700 | D98: 2 | E98: 191118/ | F98: 9 | G98: 2019-03-31 | H98: SI | I98: -1230.47 | J98: Building | L98: 2019-03-01 | O98: AIR CHATHAM'S LTD | R98: 0 | S98: -1230.47
A99: 70 10 10 1355 | B99: Advertising Revenue | C99: 173162 | D99: 13 | E99: J0446 | F99: 10 | G99: 2019-04-30 | H99: JNL | I99: -875 | J99: Sundry | L99: 2018/19 Year | O99: RC 'Southern Cross Autos' from | R99: =I99 -> -875 | S99: -875
A100: 70 10 10 1355 | B100: Advertising Revenue | C100: 173162 | D100: 14 | E100: J0446 | F100: 10 | G100: 2019-04-30 | H100: JNL | I100: -1884 | J100: Sundry | L100: 2018/19 year | O100: RC 'The Professionals' from 14 | R100: 0 | S100: -1884
A101: 70 10 10 1355 | B101: Advertising Revenue | C101: 173162 | D101: 15 | E101: J0446 | F101: 10 | G101: 2019-04-30 | H101: JNL | I101: -1009 | J101: Sundry | L101: 2018/19 Year | O101: RC 'White Island Tours' from 1 | R101: 0 | S101: -1009
A102: 70 10 10 1355 | B102: Advertising Revenue | C102: 173162 | D102: 16 | E102: J0446 | F102: 10 | G102: 2019-04-30 | H102: JNL | I102: -461.16 | J102: Sundry | L102: 2018/19 year | O102: RC 'East Central Properties Lt | R102: 0 | S102: -461.16
A103: 70 10 10 1340 | B103: Rentals and Leases | C103: 173356 | D103: 2 | E103: 191123/ | F103: 10 | G103: 2019-04-01 | H103: SI | I103: =-412.5-1237.5 -> -1650 | J103: Commercial | L103: 01/04/19-30/06/19 | O103: METEOROLOGIAL SERVICE OF NEW Z | P103: 0.75 | Q103: =I103*P103 -> -1237.5 | R103: 0 | S103: -412.5
A104: 70 10 10 1340 | B104: Rentals and Leases | C104: 173356 | D104: 4 | E104: 191124/ | F104: 10 | G104: 2019-04-01 | H104: SI | I104: -6650 | J104: Grazing | L104: 01/04/19-31/10/19 | N104: 142D Aerodrome Road | O104: GRAHAM WILLIAM JOSHUA & KAYE R | P104: 0.5714285714 | Q104: =I104*P104 -> -3800 | R104: 0 | S104: -2850
A105: 70 10 10 1340 | B105: Rentals and Leases | C105: 173356 | D105: 8 | E105: 191128/ | F105: 10 | G105: 2019-04-01 | H105: SI | I105: -250 | J105: Commercial | L105: 2019-04-01 | O105: EAST BAY AVIATION LTD | R105: =I105 -> -250 | S105: -250
A106: 70 10 10 1340 | B106: Rentals and Leases | C106: 173356 | D106: 9 | E106: 191129/ | F106: 10 | G106: 2019-04-01 | H106: SI | I106: -576 | J106: Commercial | L106: 2019-05-01 | O106: FRONTIER BUILDINGS LIMITED | R106: 0 | S106: -576
A107: 70 10 10 1300 | B107: Landing Fees | C107: 174335 | D107: 4 | E107: 192269/ | F107: 10 | G107: 2019-04-30 | H107: SI | I107: -5994.24 | J107: Landing Fees | L107: 2019-04-01 | O107: AIR CHATHAM'S LTD | R107: 0 | S107: -5994.24
A108: 70 10 10 1340 | B108: Rentals and Leases | C108: 174335 | D108: 5 | E108: 192269/ | F108: 10 | G108: 2019-04-30 | H108: SI | I108: -1141.76 | J108: Building | L108: 2019-04-01 | O108: AIR CHATHAM'S LTD | R108: 0 | S108: -1141.76
A109: 70 10 10 1300 | B109: Landing Fees | C109: 175006 | D109: 25 | E109: 193518/ | F109: 11 | G109: 2019-05-31 | H109: SI | I109: -5736.12 | J109: Landing Fees | L109: 2019-05-01 | O109: AIR CHATHAM'S LTD | R109: 0 | S109: -5736.12
A110: 70 10 10 1340 | B110: Rentals and Leases | C110: 174680 | D110: 26 | E110: 192976/ | F110: 11 | G110: 2019-05-10 | H110: SI | I110: -250 | J110: Commercial | L110: 2019-05-01 | O110: EAST BAY AVIATION LTD | R110: 0 | S110: -250
A111: 70 10 10 1340 | B111: Rentals and Leases | C111: 174680 | D111: 27 | E111: 192977/ | F111: 11 | G111: 2019-05-01 | H111: SI | I111: -576 | J111: Commercial | L111: 2019-06-01 | O111: FRONTIER BUILDINGS LIMITED | R111: 0 | S111: -576
A112: 70 10 10 1340 | B112: Rentals and Leases | C112: 175006 | D112: 26 | E112: 193518/ | F112: 11 | G112: 2019-05-31 | H112: SI | I112: -1293.44 | J112: Building | L112: 2019-05-01 | O112: AIR CHATHAM'S LTD | R112: 0 | S112: -1293.44
A113: 70 10 10 1340 | B113: Rentals and Leases | C113: 175154 | D113: 1 | E113: 193106/ | F113: 12 | G113: 2019-06-01 | H113: SI | I113: -2432.25 | J113: Grazing | L113: 01/06-30/11/19 | O113: FOX, JAMES SMITH | P113: 0.8333333333 | Q113: =P113*I113 -> -2026.875 | R113: 0 | S113: -405.375
A114: 70 10 10 1340 | B114: Rentals and Leases | C114: 175154 | D114: 2 | E114: 193107/ | F114: 12 | G114: 2019-06-01 | H114: SI | I114: -2367.39 | J114: Grazing | L114: 01/06-30/11/19 | O114: MARTIN, PETER DAVID HEDLEY | P114: 0.8333333333 | Q114: =P114*I114 -> -1972.825 | R114: =I114 -> -2367.39 | S114: -394.565
A115: 70 10 10 1340 | B115: Rentals and Leases | C115: 175154 | D115: 3 | E115: 193110/ | F115: 12 | G115: 2019-06-01 | H115: SI | I115: -1299.6 | J115: Commercial | L115: 01/06-30/11/19 | O115: WALKER, GEORGE | P115: 0.8333333333 | Q115: -1083 | R115: =I115 -> -1299.6 | S115: -216.6
A116: 70 10 10 1340 | B116: Rentals and Leases | C116: 175154 | D116: 4 | E116: 193111/ | F116: 12 | G116: 2019-06-01 | H116: SI | I116: -4711.38 | J116: Grazing | L116: 01/06-30/11/19 | O116: NOORD, HARMINA NIP | P116: 0.8333333333 | Q116: -3926.15 | R116: 0 | S116: -785.23
A117: 70 10 10 1340 | B117: Rentals and Leases | C117: 175154 | D117: 5 | E117: 193118/ | F117: 12 | G117: 2019-06-01 | H117: SI | I117: -7329.18 | J117: Grazing | L117: 01/06-30/11/19 | O117: POWER, BRIAN PHILIP | P117: 0.8333333333 | Q117: -6107.65 | R117: =I117 -> -7329.18 | S117: -1221.53
A118: 70 10 10 1340 | B118: Rentals and Leases | C118: 175154 | D118: 6 | E118: 193119/ | F118: 12 | G118: 2019-06-01 | H118: SI | I118: -1459.35 | J118: Grazing | L118: 01/06-30/11/19 | O118: ANGLE PARK LIMITED | P118: 0.8333333333 | Q118: -1216.125 | R118: =I118 -> -1459.35 | S118: -243.225
A119: 70 10 10 1340 | B119: Rentals and Leases | C119: 175154 | D119: 7 | E119: 193126/ | F119: 12 | G119: 2019-06-01 | H119: SI | I119: -3525.63 | J119: Grazing | L119: 01/06-30/11/19 | O119: ANGLE PARK LIMITED | P119: 0.8333333333 | Q119: -2938.025 | R119: =I119 -> -3525.63 | S119: -587.605
A120: 70 10 10 1340 | B120: Rentals and Leases | C120: 175154 | D120: 8 | E120: 193129/ | F120: 12 | G120: 2019-06-01 | H120: SI | I120: -3259.22 | J120: Grazing | L120: 01/06-30/11/19 | O120: VAN DEN TOP, ESTATE OF GERRIT | P120: 0.8333333333 | Q120: -2716.016667 | R120: =I120 -> -3259.22 | S120: -543.2033333
A121: 70 10 10 1340 | B121: Rentals and Leases | C121: 175154 | D121: 9 | E121: 193131/ | F121: 12 | G121: 2019-06-01 | H121: SI | I121: -5896.41 | J121: Grazing | L121: 01/06-30/11/19 | O121: GRAHAM WILLIAM JOSHUA & KAYE R | P121: 0.8333333333 | Q121: -4913.675 | R121: =I121 -> -5896.41 | S121: -982.735
A122: 70 10 10 1340 | B122: Rentals and Leases | C122: 175154 | D122: 13 | E122: 193135/ | F122: 12 | G122: 2019-06-01 | H122: SI | I122: -250 | J122: Commercial | L122: 2019-06-01 | O122: EAST BAY AVIATION LTD | R122: 0 | S122: -250
A123: 70 10 10 1340 | B123: Rentals and Leases | C123: 175154 | D123: 14 | E123: 193137/ | F123: 12 | G123: 2019-06-01 | H123: SI | I123: -576 | J123: Commercial | L123: 2019-07-01 | O123: FRONTIER BUILDINGS LIMITED | P123: 1 | Q123: =P123*I123 -> -576 | R123: =I123 -> -576 | S123: 0
A124: 70 10 10 1340 | B124: Rentals and Leases | C124: 175154 | D124: 17 | E124: 193140/ | F124: 12 | G124: 2019-06-01 | H124: SI | I124: -1572.1 | J124: Commercial | L124: 01/06-30/11/19 | O124: WHAKATANE HANGAR PARTNERSHIP | P124: 0.8333333333 | Q124: =P124*I124 -> -1310.083333 | R124: -1572.1 | S124: -262.0166667
A125: 70 10 14 1340 | B125: Rentals and Leases | C125: 175154 | D125: 15 | E125: 193138/ | F125: 12 | G125: 2019-06-01 | H125: SI | I125: -586 | J125: Building | L125: 01/06-30/11/19 | O125: PAYNE, JOSHUA NATHAN | P125: 0.8333333333 | Q125: =P125*I125 -> -488.3333333 | R125: -586 | S125: -97.66666667
A126: 70 10 10 1300 | B126: Landing Fees | C126: 175548 | D126: 46 | E126: 194423/ | F126: 12 | G126: 2019-06-27 | H126: SI | I126: -173.91 | J126: Landing Fees | L126: 2019 FY | O126: STEELE, CRAIG PHILIP | R126: -173.91 | S126: -173.91
A127: 70 10 10 1300 | B127: Landing Fees | C127: 175548 | D127: 47 | E127: 194424/ | F127: 12 | G127: 2019-06-27 | H127: SI | I127: -608.7 | J127: Landing Fees | L127: 2019 FY | O127: AEROHIRE LIMITED | R127: -608.7 | S127: -608.7
A128: 70 10 10 1300 | B128: Landing Fees | C128: 175548 | D128: 48 | E128: 194425/ | F128: 12 | G128: 2019-06-27 | H128: SI | I128: -173.91 | J128: Landing Fees | L128: 2019 FY | O128: SCHADLER, CHRISTIAN ALFRED | R128: -173.91 | S128: -173.91
A129: 70 10 10 1300 | B129: Landing Fees | C129: 175548 | D129: 49 | E129: 194426/ | F129: 12 | G129: 2019-06-27 | H129: SI | I129: -173.91 | J129: Landing Fees | L129: 2019 FY | O129: TRUST, DAVID JOSEPH | R129: -173.91 | S129: -173.91
A130: 70 10 10 1300 | B130: Landing Fees | C130: 175548 | D130: 50 | E130: 194427/ | F130: 12 | G130: 2019-06-27 | H130: SI | I130: -173.91 | J130: Landing Fees | L130: 2019 FY | O130: MANDERSON, IAN LEONARD | R130: 0 | S130: -173.91
A131: 70 10 10 1300 | B131: Landing Fees | C131: 175548 | D131: 51 | E131: 194428/ | F131: 12 | G131: 2019-06-27 | H131: SI | I131: -173.91 | J131: Landing Fees | L131: 2019 FY | O131: MULLOOLY, PETER ROWLAND | R131: =I131 -> -173.91 | S131: -173.91
A132: 70 10 10 1300 | B132: Landing Fees | C132: 175548 | D132: 52 | E132: 194429/ | F132: 12 | G132: 2019-06-27 | H132: SI | I132: -173.91 | J132: Landing Fees | L132: 2019 FY | O132: VAN BEEK, ROBERT FRANCIS | R132: -173.91 | S132: -173.91
A133: 70 10 10 1300 | B133: Landing Fees | C133: 175548 | D133: 53 | E133: 194430/ | F133: 12 | G133: 2019-06-27 | H133: SI | I133: -173.91 | J133: Landing Fees | L133: 2019 FY | O133: POWER, ROBERT STANLEY | R133: -173.91 | S133: -173.91
A134: 70 10 10 1300 | B134: Landing Fees | C134: 175548 | D134: 54 | E134: 194431/ | F134: 12 | G134: 2019-06-27 | H134: SI | I134: -173.91 | J134: Landing Fees | L134: 2019 FY | O134: TORRAN MOOR LIMITED | R134: -173.91 | S134: -173.91
A135: 70 10 10 1300 | B135: Landing Fees | C135: 175548 | D135: 55 | E135: 194432/ | F135: 12 | G135: 2019-06-27 | H135: SI | I135: -173.91 | J135: Landing Fees | L135: 2019 FY | O135: WILLIE BAKKER, W | R135: -173.91 | S135: -173.91
A136: 70 10 10 1300 | B136: Landing Fees | C136: 175548 | D136: 56 | E136: 194433/ | F136: 12 | G136: 2019-06-27 | H136: SI | I136: -173.91 | J136: Landing Fees | L136: 2019 FY | O136: THE DEE FAMILY TRUST | R136: -173.91 | S136: -173.91
A137: 70 10 10 1300 | B137: Landing Fees | C137: 175548 | D137: 57 | E137: 194434/ | F137: 12 | G137: 2019-06-27 | H137: SI | I137: -173.91 | J137: Landing Fees | L137: 2019 FY | O137: MCNICHOLAS, LANCE PATRICK | R137: -173.91 | S137: -173.91
A138: 70 10 10 1300 | B138: Landing Fees | C138: 175548 | D138: 58 | E138: 194435/ | F138: 12 | G138: 2019-06-27 | H138: SI | I138: -173.91 | J138: Landing Fees | L138: 2019 FY | O138: SCHULTE, JACK | R138: -173.91 | S138: -173.91
A139: 70 10 10 1300 | B139: Landing Fees | C139: 175548 | D139: 59 | E139: 194436/ | F139: 12 | G139: 2019-06-27 | H139: SI | I139: -173.91 | J139: Landing Fees | L139: 2019 FY | O139: VILE, KEVIN CHARLES | R139: -173.91 | S139: -173.91
A140: 70 10 10 1300 | B140: Landing Fees | C140: 175548 | D140: 60 | E140: 194437/ | F140: 12 | G140: 2019-06-27 | H140: SI | I140: -173.91 | J140: Landing Fees | L140: 2019 FY | O140: SMITH, TREVOR STANLEY | R140: -173.91 | S140: -173.91
A141: 70 10 10 1300 | B141: Landing Fees | C141: 175548 | D141: 61 | E141: 194438/ | F141: 12 | G141: 2019-06-27 | H141: SI | I141: -173.91 | J141: Landing Fees | L141: 2019 FY | O141: REDROCK AVIATION LTD | R141: -173.91 | S141: -173.91
A142: 70 10 10 1300 | B142: Landing Fees | C142: 175548 | D142: 62 | E142: 194439/ | F142: 12 | G142: 2019-06-27 | H142: SI | I142: -173.91 | J142: Landing Fees | L142: 2019 FY | O142: SUPERAIR LIMITED | R142: -173.91 | S142: -173.91
A143: 70 10 10 1300 | B143: Landing Fees | C143: 175548 | D143: 63 | E143: 194440/ | F143: 12 | G143: 2019-06-27 | H143: SI | I143: -173.91 | J143: Landing Fees | L143: 2019 FY | O143: LYSAGHT SYNDICATE IW & AJ | R143: -173.91 | S143: -173.91
A144: 70 10 10 1300 | B144: Landing Fees | C144: 175548 | D144: 64 | E144: 194441/ | F144: 12 | G144: 2019-06-27 | H144: SI | I144: -608.7 | J144: Landing Fees | L144: 2019 FY | O144: KAHU NZ LTD | R144: -608.7 | S144: -608.7
A145: 70 10 10 1300 | B145: Landing Fees | C145: 175548 | D145: 65 | E145: 194442/ | F145: 12 | G145: 2019-06-27 | H145: SI | I145: -608.7 | J145: Landing Fees | L145: 2019 FY | O145: EAST BAY AVIATION LTD | R145: -608.7 | S145: -608.7
A146: 70 10 10 1300 | B146: Landing Fees | C146: 175835 | D146: 56 | E146: 194797/ | F146: 12 | G146: 2019-06-30 | H146: SI | I146: -6176.19 | J146: Landing Fees | L146: 2019-06-01 | O146: AIR CHATHAM'S LTD | R146: -6176.19 | S146: -6176.19
A147: 70 10 10 1340 | B147: Rentals and Leases | C147: 175835 | D147: 57 | E147: 194797/ | F147: 12 | G147: 2019-06-30 | H147: SI | I147: -1176.42 | J147: Building | L147: 2019-06-01 | O147: AIR CHATHAM'S LTD | R147: -1176.42 | S147: -1176.42
A148: 70 10 10 1400 | B148: Expense Recoveries | C148: 176107 | D148: 4 | E148: 195006/ | F148: 12 | G148: 2019-07-12 | H148: SI | I148: -853.45 | J148: Sundry | L148: April- June/2019 | O148: GRAHAM WILLIAM JOSHUA & KAYE R | R148: =I148 -> -853.45 | S148: -853.45
P150: Total | Q150: =SUBTOTAL(9,Q87:Q125) -> -35367.28611
P151: Exclude already in IIA | Q151: =Q150-Q103 -> -34129.78611
